Workbook

Sheet Eingabe
B1: Wo befindet sich die Internationale Raumstation gerade?
B2: Wo und wie hoch zieht sie über den Himmel?
B3: Überarbeitete Test-Version 2/2022
B5: Mein Standort | C5: j Breite | D5: 52.4 | E5: ° | F5: l Länge | G5: 9.75 | H5: ° | I5: Zeitzone | J5: 1 | K5: (UTC)
B7: Start der Zählung (Epoche) | D7: =R17 -> 2022-02-14 | R7: Ingo Mennerich, 11/2018
D8: =R19 -> 13:21:25 | R8: Überarbeitet 02/2022
B9: 15.08.2018 17:32:52
B10: 15.02.2022 18:17:57 | F10: Zeitmakro aktivieren: STRG+SHIFT+A | M10: Kepler-Daten in gelbe Felder einfügen. | R10: Eingabe | T10: Bahnelemente
R11: (gelbe Felder) | T11: (TLE) als Vorlage
Z12: HIER KOPIERTE TWO-Line-ELEMENTS (TLE) EINFÜGEN
B13: 23.07.2018 14:39:50 | M13: Mittlere Höhe der Umlaufbahn | R13: 418 | S13: km | T13: =(AA23+AA24)/2 -> 417.4230972 | Z13: ▼
Y14: ► | Z14: 1 25544U 98067A 22045.55654105 .00009474 00000-0 17512-3 0 9997
M15: I Bahnneigung (Inklination) | R15: 51.64 | S15: Grad | T15: =AA22 -> 51.6419 | Z15: 2 25544 51.6419 223.8874 0005841 130.5821 339.7825 15.49770723326160
M17: Z0 Epoche (UTC) | P17: Datum | R17: 2022-02-14 | T17: =AA19 -> 2022-02-14T13:21:25.147
Z18: Aus TLE extrahierte Bahnelemente (Keplerdaten)
P19: Zeit (UTC) | R19: 13:21:25 | T19: =AA20 -> 44606.55654 | Z19: Epoche (UTC): | AA19: ='TLE-Daten Auswertung'!C15 -> 2022-02-14T13:21:25.147
AA20: ='TLE-Daten Auswertung'!C15 -> 44606.55654
P21: W RAAN (°) | R21: 223.8874 | T21: =AA25 -> 223.8874 | Z21: Exzentrizität (e) | AA21: ='TLE-Daten Auswertung'!C18 -> 0.0005841
Z22: Inklination (I) | AA22: ='TLE-Daten Auswertung'!C28 -> 51.6419
P23: Argument des Perigäums | R23: 130.5821 | T23: =AA26 -> 130.5821 | Z23: Höhe des Perigäums (km): | AA23: ='TLE-Daten Auswertung'!C29 -> 413.4537971
Z24: Höhe des Apogäums (km): | AA24: ='TLE-Daten Auswertung'!C30 -> 421.3923973
P25: Mittlere Anomalie | R25: 339.7825 | T25: =AA28 -> 339.7825 | Z25: Rektaszension des aufsteigenden Knotens (W) | AA25: ='TLE-Daten Auswertung'!C32 -> 223.8874
Z26: Argument des Perigäums (w) | AA26: ='TLE-Daten Auswertung'!C37 -> 130.5821
Z27: Mittlere Bewegung (Umrundungen pro Tag): | AA27: ='TLE-Daten Auswertung'!C20 -> 15.49770723
Z28: Mittlere Anomalie (n) | AA28: ='TLE-Daten Auswertung'!C40 -> 339.7825
M29: Mittlere Bahngeschwindigkeit | R29: ='Berechnung Position'!C11 -> 27550.56377 | S29: km/h | Z29: Anzahl an Umrundungen: | AA29: ='TLE-Daten Auswertung'!C45 -> 32616
B30: ='Berechnung Position'!C15 -> 2022-02-14T14:21:25 | M30: U Mittlere Umlaufzeit | R30: ='Berechnung Position'!C13 -> 92.89801561 | S30: Minuten
G31: Karte: Equirectangular Projection, Wikipedia | M31: l0 Länge des ersten Äquatordurchgangs (EQX, aufsteigend) | R31: =C44 -> -90.24418539 | S31: Grad | Z31: Mögliche Quellen:
C32: Länge l (°) | D32: Breite j (°) | F32: Distanz (km) | G32: Elevation (°) | J32: Azimut (°) | M32: p Mittlere Knotenwanderung der Bahn (Präzession) | R32: ='Berechnung Position'!C18 -> 4.968421289 | S32: Grad /Tag | Z32: https://celestrak.com/NORAD/elements/
B33: ISS | C33: ='Berechnung Position'!D55 -> -46.32889157 | D33: ='Berechnung Position'!C46 -> 38.59331615 | F33: ='Berechnung Position'!C67 -> 4503.969212 | G33: ='Berechnung Position'!C73 -> -15.30377463 | J33: ='Berechnung Position'!C79 -> 273.091554 | M33: Z Zeit vor bzw. nach eingestellter Epoche | R33: ='Berechnung Position'!C40 -> 29.96518231 | S33: Stunden | Z33: http://www.amsat.org/amsat/ftp/keps/current/nasa.all
B34: Standort | C34: =G5 -> 9.75 | D34: =D5 -> 52.4 | J34: ='Berechnung Position'!C80 -> 93.09155396 | R34: ='Berechnung Position'!C41 -> 1.248549263 | S34: Tage | Z34: https://www.heavens-above.com/main.aspx
M35: Seit der eingestellten Epoche: | R35: ='Berechnung Position'!C42 -> 19.35359896 | S35: Umläufe
Z36: ISS = "Zarya"
B39: Datum, Uhrzeit und RAAN (Rektaszension des aufsteigenden Knotens) der gewählten Epoche | M39: Auf die eingestellte Epoche | P39: =R17 -> 2022-02-14 | Q39: =R19 -> 13:21:25 | R39: folgenden nächsten 15 Umläufe:
B40: und die daraus folgende Länge l, Zeit (UTC), Sternzeit (GMST) und Rektaszension (R.A) des EQX
M41: → Zeit UTC +/- | O41: =J5 -> 1 | P41: Stunden | Q41: =IF(O41=2,"MESZ","MEZ") -> MEZ
B42: Datum | C42: =R17 -> 2022-02-14 | D42: Zeit (UTC) | E42: =R19 -> 13:21:25 | G42: W RAAN (°) | H42: =R21 -> 223.8874
L43: # | N43: EQX ↑ | P43: j =51,6° Nord | R43: EQX↓ | T43: j =51,6° Süd
B44: l0 EQX (°) | C44: ='Berechnung Position'!C108 -> -90.24418539 | D44: t EQX (UTC) | E44: ='Berechnung Position'!C31-J5/24 -> 44606.47225 | G44: GMST (l=0°) | H44: ='Berechnung Position'!C98 -> 22:59:36.305 | I44: R.A. (°) | J44: ='Berechnung Position'!C103 -> 344.9012696 | N44: l | O44: Zeit | P44: l | Q44: Zeit | R44: l | S44: Zeit | T44: l | U44: Zeit
L45: 0 | M45: =R17 -> 2022-02-14 | N45: =C44 -> -90.24418539 | O45: ='Berechnung Position'!C31 -> 44606.51392 | P45: =IF(N45+84.1>180,N45+84.1-360,N45+84.1) -> -6.144185393 | Q45: =O45+$R$30/1440/4 -> 44606.53004 | R45: =IF(P45+84.1>180,P45+84.1-360,P45+84.1) -> 77.95581461 | S45: =Q45+$R$30/1440/4 -> 44606.54617 | T45: =IF(R45+84.1>180,R45+84.1-360,R45+84.1) -> 162.0558146 | U45: =S45+$R$30/1440/4 -> 44606.5623
L46: 1 | M46: =M45+$R$30/1440 -> 2022-02-14T01:32:53.881 | N46: =IF(N45-Bahnverlauf!$E$11<-180,N45-Bahnverlauf!$E$11+360,N45-Bahnverlauf!$E$11) -> -113.7941854 | O46: =O45+$R$30/1440 -> 44606.57843 | P46: -29.69418539 | Q46: 44606.59456 | R46: =IF(P46+84.1>180,P46+84.1-360,P46+84.1) -> 54.40581461 | S46: 44606.61068 | T46: =IF(R46+84.1>180,R46+84.1-360,R46+84.1) -> 138.5058146 | U46: 44606.62681
L47: 2 | M47: 2022-02-14T03:05:47.762 | N47: =IF(N46-Bahnverlauf!$E$11<-180,N46-Bahnverlauf!$E$11+360,N46-Bahnverlauf!$E$11) -> -137.3441854 | O47: 44606.64294 | P47: -53.24418539 | Q47: 44606.65907 | R47: =IF(P47+84.1>180,P47+84.1-360,P47+84.1) -> 30.85581461 | S47: 44606.6752 | T47: =IF(R47+84.1>180,R47+84.1-360,R47+84.1) -> 114.9558146 | U47: 44606.69133
L48: 3 | M48: 2022-02-14T04:38:41.643 | N48: =IF(N47-Bahnverlauf!$E$11<-180,N47-Bahnverlauf!$E$11+360,N47-Bahnverlauf!$E$11) -> -160.8941854 | O48: 44606.70745 | P48: -76.79418539 | Q48: 44606.72358 | R48: 7.305814607 | S48: 44606.73971 | T48: 91.40581461 | U48: 44606.75584
L49: 4 | M49: 2022-02-14T06:11:35.524 | N49: =IF(N48-Bahnverlauf!$E$11<-180,N48-Bahnverlauf!$E$11+360,N48-Bahnverlauf!$E$11) -> 175.5558146 | O49: 44606.77197 | P49: -100.3441854 | Q49: 44606.78809 | R49: -16.24418539 | S49: 44606.80422 | T49: 67.85581461 | U49: 44606.82035
L50: 5 | M50: 2022-02-14T07:44:29.405 | N50: =IF(N49-Bahnverlauf!$E$11<-180,N49-Bahnverlauf!$E$11+360,N49-Bahnverlauf!$E$11) -> 152.0058146 | O50: 44606.83648 | P50: -123.8941854 | Q50: 44606.85261 | R50: -39.79418539 | S50: 44606.86873 | T50: 44.30581461 | U50: 44606.88486
L51: 6 | M51: 2022-02-14T09:17:23.286 | N51: =IF(N50-Bahnverlauf!$E$11<-180,N50-Bahnverlauf!$E$11+360,N50-Bahnverlauf!$E$11) -> 128.4558146 | O51: 44606.90099 | P51: -147.4441854 | Q51: 44606.91712 | R51: -63.34418539 | S51: 44606.93325 | T51: 20.75581461 | U51: 44606.94938
L52: 7 | M52: 2022-02-14T10:50:17.167 | N52: =IF(N51-Bahnverlauf!$E$11<-180,N51-Bahnverlauf!$E$11+360,N51-Bahnverlauf!$E$11) -> 104.9058146 | O52: 44606.9655 | P52: -170.9941854 | Q52: 44606.98163 | R52: -86.89418539 | S52: 44606.99776 | T52: -2.794185393 | U52: 44607.01389
L53: 8 | M53: 2022-02-14T12:23:11.047 | N53: =IF(N52-Bahnverlauf!$E$11<-180,N52-Bahnverlauf!$E$11+360,N52-Bahnverlauf!$E$11) -> 81.35581461 | O53: 44607.03002 | P53: 165.4558146 | Q53: 44607.04614 | R53: -110.4441854 | S53: 44607.06227 | T53: -26.34418539 | U53: 44607.0784
L54: 9 | M54: 2022-02-14T13:56:04.928 | N54: =IF(N53-Bahnverlauf!$E$11<-180,N53-Bahnverlauf!$E$11+360,N53-Bahnverlauf!$E$11) -> 57.80581461 | O54: 44607.09453 | P54: 141.9058146 | Q54: 44607.11066 | R54: -133.9941854 | S54: 44607.12678 | T54: -49.89418539 | U54: 44607.14291
L55: 10 | M55: 2022-02-14T15:28:58.809 | N55: =IF(N54-Bahnverlauf!$E$11<-180,N54-Bahnverlauf!$E$11+360,N54-Bahnverlauf!$E$11) -> 34.25581461 | O55: 44607.15904 | P55: 118.3558146 | Q55: 44607.17517 | R55: -157.5441854 | S55: 44607.1913 | T55: -73.44418539 | U55: 44607.20743
L56: 11 | M56: 2022-02-14T17:01:52.690 | N56: =IF(N55-Bahnverlauf!$E$11<-180,N55-Bahnverlauf!$E$11+360,N55-Bahnverlauf!$E$11) -> 10.70581461 | O56: 44607.22355 | P56: 94.80581461 | Q56: 44607.23968 | R56: =IF(P56+84.1>180,P56+84.1-360,P56+84.1) -> 178.9058146 | S56: 44607.25581 | T56: =IF(R56+84.1>180,R56+84.1-360,R56+84.1) -> -96.99418539 | U56: 44607.27194
L57: 12 | M57: 2022-02-14T18:34:46.571 | N57: =IF(N56-Bahnverlauf!$E$11<-180,N56-Bahnverlauf!$E$11+360,N56-Bahnverlauf!$E$11) -> -12.84418539 | O57: 44607.28807 | P57: 71.25581461 | Q57: 44607.30419 | R57: =IF(P57+84.1>180,P57+84.1-360,P57+84.1) -> 155.3558146 | S57: 44607.32032 | T57: =IF(R57+84.1>180,R57+84.1-360,R57+84.1) -> -120.5441854 | U57: 44607.33645
L58: 13 | M58: 2022-02-14T20:07:40.452 | N58: =IF(N57-Bahnverlauf!$E$11<-180,N57-Bahnverlauf!$E$11+360,N57-Bahnverlauf!$E$11) -> -36.39418539 | O58: 44607.35258 | P58: 47.70581461 | Q58: 44607.36871 | R58: =IF(P58+84.1>180,P58+84.1-360,P58+84.1) -> 131.8058146 | S58: 44607.38483 | T58: =IF(R58+84.1>180,R58+84.1-360,R58+84.1) -> -144.0941854 | U58: 44607.40096
L59: 14 | M59: 2022-02-14T21:40:34.333 | N59: =IF(N58-Bahnverlauf!$E$11<-180,N58-Bahnverlauf!$E$11+360,N58-Bahnverlauf!$E$11) -> -59.94418539 | O59: 44607.41709 | P59: 24.15581461 | Q59: 44607.43322 | R59: =IF(P59+84.1>180,P59+84.1-360,P59+84.1) -> 108.2558146 | S59: 44607.44935 | T59: =IF(R59+84.1>180,R59+84.1-360,R59+84.1) -> -167.6441854 | U59: 44607.46548
L60: 15 | M60: 2022-02-14T23:13:28.214 | N60: =IF(N59-Bahnverlauf!$E$11<-180,N59-Bahnverlauf!$E$11+360,N59-Bahnverlauf!$E$11) -> -83.49418539 | O60: 44607.4816 | P60: 0.6058146073 | Q60: 44607.49773 | R60: =IF(P60+84.1>180,P60+84.1-360,P60+84.1) -> 84.70581461 | S60: 44607.51386 | T60: =IF(R60+84.1>180,R60+84.1-360,R60+84.1) -> 168.8058146 | U60: 44607.52999
G61: Karte: Equirectangular Projection, Wikipedia
L65: # | N65: EQX ↑ | P65: j =51,6° Nord | R65: EQX↓ | T65: j =51,6° Süd
B66: Die nebenstehende Tabelle zeigt die geographischen Längen und Zeiten (MEZ/MESZ) | N66: l | O66: Zeit | P66: l | Q66: Zeit | R66: l | S66: Zeit | T66: l | U66: Zeit | Z66: =M67 -> 2022-02-14
B67: für die nächsten 90 auf die eingestellte Epoche folgenden Umläufe. | L67: 0 | M67: =R17 -> 2022-02-14 | N67: =N45 -> -90.24418539 | O67: =O45 -> 44606.51392 | P67: =IF(N67+84.1>180,N67+84.1-360,N67+84.1) -> -6.144185393 | Q67: =O67+$R$30/1440/4 -> 44606.53004 | R67: =IF(P67+84.1>180,P67+84.1-360,P67+84.1) -> 77.95581461 | S67: =Q67+$R$30/1440/4 -> 44606.54617 | T67: =IF(R67+84.1>180,R67+84.1-360,R67+84.1) -> 162.0558146 | U67: =S67+$R$30/1440/4 -> 44606.5623
L68: 1 | M68: =M67+$R$30/1440 -> 2022-02-14T01:32:53.881 | N68: =IF(N67-Bahnverlauf!$E$11<-180,N67-Bahnverlauf!$E$11+360,N67-Bahnverlauf!$E$11) -> -113.7941854 | O68: =O67+$R$30/1440 -> 44606.57843 | P68: -29.69418539 | Q68: 44606.59456 | R68: =IF(P68+84.1>180,P68+84.1-360,P68+84.1) -> 54.40581461 | S68: 44606.61068 | T68: =IF(R68+84.1>180,R68+84.1-360,R68+84.1) -> 138.5058146 | U68: 44606.62681
C69: ● Äquatorübertritt aufsteigend | L69: 2 | M69: 2022-02-14T03:05:47.762 | N69: =IF(N68-Bahnverlauf!$E$11<-180,N68-Bahnverlauf!$E$11+360,N68-Bahnverlauf!$E$11) -> -137.3441854 | O69: 44606.64294 | P69: -53.24418539 | Q69: 44606.65907 | R69: =IF(P69+84.1>180,P69+84.1-360,P69+84.1) -> 30.85581461 | S69: 44606.6752 | T69: =IF(R69+84.1>180,R69+84.1-360,R69+84.1) -> 114.9558146 | U69: 44606.69133
C70: ● Größte Nordbreite | L70: 3 | M70: 2022-02-14T04:38:41.643 | N70: =IF(N69-Bahnverlauf!$E$11<-180,N69-Bahnverlauf!$E$11+360,N69-Bahnverlauf!$E$11) -> -160.8941854 | O70: 44606.70745 | P70: -76.79418539 | Q70: 44606.72358 | R70: 7.305814607 | S70: 44606.73971 | T70: 91.40581461 | U70: 44606.75584
C71: ● Äquatorübertritt absteigend | L71: 4 | M71: 2022-02-14T06:11:35.524 | N71: =IF(N70-Bahnverlauf!$E$11<-180,N70-Bahnverlauf!$E$11+360,N70-Bahnverlauf!$E$11) -> 175.5558146 | O71: 44606.77197 | P71: -100.3441854 | Q71: 44606.78809 | R71: -16.24418539 | S71: 44606.80422 | T71: 67.85581461 | U71: 44606.82035
C72: ● Größte Südbreite | L72: 5 | M72: 2022-02-14T07:44:29.405 | N72: =IF(N71-Bahnverlauf!$E$11<-180,N71-Bahnverlauf!$E$11+360,N71-Bahnverlauf!$E$11) -> 152.0058146 | O72: 44606.83648 | P72: -123.8941854 | Q72: 44606.85261 | R72: -39.79418539 | S72: 44606.86873 | T72: 44.30581461 | U72: 44606.88486
L73: 6 | M73: 2022-02-14T09:17:23.286 | N73: =IF(N72-Bahnverlauf!$E$11<-180,N72-Bahnverlauf!$E$11+360,N72-Bahnverlauf!$E$11) -> 128.4558146 | O73: 44606.90099 | P73: -147.4441854 | Q73: 44606.91712 | R73: -63.34418539 | S73: 44606.93325 | T73: 20.75581461 | U73: 44606.94938
B74: Die Basis ist ist das Datum, die Zeit und die Rektaszension des aufsteigenden Bahnknotens | L74: 7 | M74: 2022-02-14T10:50:17.167 | N74: =IF(N73-Bahnverlauf!$E$11<-180,N73-Bahnverlauf!$E$11+360,N73-Bahnverlauf!$E$11) -> 104.9058146 | O74: 44606.9655 | P74: -170.9941854 | Q74: 44606.98163 | R74: -86.89418539 | S74: 44606.99776 | T74: -2.794185393 | U74: 44607.01389
B75: der gewählten Epoche | L75: 8 | M75: 2022-02-14T12:23:11.047 | N75: =IF(N74-Bahnverlauf!$E$11<-180,N74-Bahnverlauf!$E$11+360,N74-Bahnverlauf!$E$11) -> 81.35581461 | O75: 44607.03002 | P75: 165.4558146 | Q75: 44607.04614 | R75: -110.4441854 | S75: 44607.06227 | T75: -26.34418539 | U75: 44607.0784
L76: 9 | M76: 2022-02-14T13:56:04.928 | N76: =IF(N75-Bahnverlauf!$E$11<-180,N75-Bahnverlauf!$E$11+360,N75-Bahnverlauf!$E$11) -> 57.80581461 | O76: 44607.09453 | P76: 141.9058146 | Q76: 44607.11066 | R76: -133.9941854 | S76: 44607.12678 | T76: -49.89418539 | U76: 44607.14291
L77: 10 | M77: 2022-02-14T15:28:58.809 | N77: =IF(N76-Bahnverlauf!$E$11<-180,N76-Bahnverlauf!$E$11+360,N76-Bahnverlauf!$E$11) -> 34.25581461 | O77: 44607.15904 | P77: 118.3558146 | Q77: 44607.17517 | R77: -157.5441854 | S77: 44607.1913 | T77: -73.44418539 | U77: 44607.20743
L78: 11 | M78: 2022-02-14T17:01:52.690 | N78: =IF(N77-Bahnverlauf!$E$11<-180,N77-Bahnverlauf!$E$11+360,N77-Bahnverlauf!$E$11) -> 10.70581461 | O78: 44607.22355 | P78: 94.80581461 | Q78: 44607.23968 | R78: =IF(P78+84.1>180,P78+84.1-360,P78+84.1) -> 178.9058146 | S78: 44607.25581 | T78: =IF(R78+84.1>180,R78+84.1-360,R78+84.1) -> -96.99418539 | U78: 44607.27194
B79: http://www.isstracker.com/ | F79: ►Bahnverfolgung | L79: 12 | M79: 2022-02-14T18:34:46.571 | N79: =IF(N78-Bahnverlauf!$E$11<-180,N78-Bahnverlauf!$E$11+360,N78-Bahnverlauf!$E$11) -> -12.84418539 | O79: 44607.28807 | P79: 71.25581461 | Q79: 44607.30419 | R79: =IF(P79+84.1>180,P79+84.1-360,P79+84.1) -> 155.3558146 | S79: 44607.32032 | T79: =IF(R79+84.1>180,R79+84.1-360,R79+84.1) -> -120.5441854 | U79: 44607.33645
B80: http://aa.usno.navy.mil/data/docs/siderealtime.php | F80: ►Sternzeit | L80: 13 | M80: 2022-02-14T20:07:40.452 | N80: =IF(N79-Bahnverlauf!$E$11<-180,N79-Bahnverlauf!$E$11+360,N79-Bahnverlauf!$E$11) -> -36.39418539 | O80: 44607.35258 | P80: 47.70581461 | Q80: 44607.36871 | R80: =IF(P80+84.1>180,P80+84.1-360,P80+84.1) -> 131.8058146 | S80: 44607.38483 | T80: =IF(R80+84.1>180,R80+84.1-360,R80+84.1) -> -144.0941854 | U80: 44607.40096
B81: https://heavens-above.com/orbit.aspx?satid=25544 | F81: ►Bahndaten | L81: 14 | M81: 2022-02-14T21:40:34.333 | N81: =IF(N80-Bahnverlauf!$E$11<-180,N80-Bahnverlauf!$E$11+360,N80-Bahnverlauf!$E$11) -> -59.94418539 | O81: 44607.41709 | P81: 24.15581461 | Q81: 44607.43322 | R81: =IF(P81+84.1>180,P81+84.1-360,P81+84.1) -> 108.2558146 | S81: 44607.44935 | T81: =IF(R81+84.1>180,R81+84.1-360,R81+84.1) -> -167.6441854 | U81: 44607.46548
L82: 15 | M82: 2022-02-14T23:13:28.214 | N82: =IF(N81-Bahnverlauf!$E$11<-180,N81-Bahnverlauf!$E$11+360,N81-Bahnverlauf!$E$11) -> -83.49418539 | O82: 44607.4816 | P82: 0.6058146073 | Q82: 44607.49773 | R82: =IF(P82+84.1>180,P82+84.1-360,P82+84.1) -> 84.70581461 | S82: 44607.51386 | T82: =IF(R82+84.1>180,R82+84.1-360,R82+84.1) -> 168.8058146 | U82: 44607.52999
L83: 16 | M83: 2022-02-15T00:46:22.095 | N83: =IF(N82-Bahnverlauf!$E$11<-180,N82-Bahnverlauf!$E$11+360,N82-Bahnverlauf!$E$11) -> -107.0441854 | O83: 44607.54612 | P83: =IF(N83+84.1>180,N83+84.1-360,N83+84.1) -> -22.94418539 | Q83: 44607.56224 | R83: =IF(P83+84.1>180,P83+84.1-360,P83+84.1) -> 61.15581461 | S83: 44607.57837 | T83: =IF(R83+84.1>180,R83+84.1-360,R83+84.1) -> 145.2558146 | U83: 44607.5945
L84: 17 | M84: 2022-02-15T02:19:15.976 | N84: =IF(N83-Bahnverlauf!$E$11<-180,N83-Bahnverlauf!$E$11+360,N83-Bahnverlauf!$E$11) -> -130.5941854 | O84: 44607.61063 | P84: -46.49418539 | Q84: 44607.62676 | R84: 37.60581461 | S84: 44607.64288 | T84: 121.7058146 | U84: 44607.65901
B85: RAAN: Right Ascension Ascending Node | L85: 18 | M85: 2022-02-15T03:52:09.857 | N85: =IF(N84-Bahnverlauf!$E$11<-180,N84-Bahnverlauf!$E$11+360,N84-Bahnverlauf!$E$11) -> -154.1441854 | O85: 44607.67514 | P85: -70.04418539 | Q85: 44607.69127 | R85: 14.05581461 | S85: 44607.7074 | T85: 98.15581461 | U85: 44607.72353
B86: RA: Rektaszension: (Stunden)Winkel zum Frühlingspunkt | L86: 19 | M86: 2022-02-15T05:25:03.738 | N86: =IF(N85-Bahnverlauf!$E$11<-180,N85-Bahnverlauf!$E$11+360,N85-Bahnverlauf!$E$11) -> -177.6941854 | O86: 44607.73965 | P86: -93.59418539 | Q86: 44607.75578 | R86: -9.494185393 | S86: 44607.77191 | T86: 74.60581461 | U86: 44607.78804
B87: EQX: Equator Crossing (aufsteigend) | L87: 20 | M87: 2022-02-15T06:57:57.619 | N87: =IF(N86-Bahnverlauf!$E$11<-180,N86-Bahnverlauf!$E$11+360,N86-Bahnverlauf!$E$11) -> 158.7558146 | O87: 44607.80417 | P87: -117.1441854 | Q87: 44607.82029 | R87: -33.04418539 | S87: 44607.83642 | T87: 51.05581461 | U87: 44607.85255
B88: Epoche: Zeitpunkt der Grundeinstellungen | L88: 21 | M88: 2022-02-15T08:30:51.500 | N88: =IF(N87-Bahnverlauf!$E$11<-180,N87-Bahnverlauf!$E$11+360,N87-Bahnverlauf!$E$11) -> 135.2058146 | O88: 44607.86868 | P88: -140.6941854 | Q88: 44607.88481 | R88: -56.59418539 | S88: 44607.90093 | T88: 27.50581461 | U88: 44607.91706
L89: 22 | M89: 2022-02-15T10:03:45.381 | N89: =IF(N88-Bahnverlauf!$E$11<-180,N88-Bahnverlauf!$E$11+360,N88-Bahnverlauf!$E$11) -> 111.6558146 | O89: 44607.93319 | P89: -164.2441854 | Q89: 44607.94932 | R89: -80.14418539 | S89: 44607.96545 | T89: 3.955814607 | U89: 44607.98158
B90: Distanz: Distanz zum Punkt unter der ISS (Orthodrome) | L90: 23 | M90: 2022-02-15T11:36:39.262 | N90: =IF(N89-Bahnverlauf!$E$11<-180,N89-Bahnverlauf!$E$11+360,N89-Bahnverlauf!$E$11) -> 88.10581461 | O90: 44607.9977 | P90: 172.2058146 | Q90: 44608.01383 | R90: -103.6941854 | S90: 44608.02996 | T90: -19.59418539 | U90: 44608.04609
L91: 24 | M91: 2022-02-15T13:09:33.142 | N91: =IF(N90-Bahnverlauf!$E$11<-180,N90-Bahnverlauf!$E$11+360,N90-Bahnverlauf!$E$11) -> 64.55581461 | O91: 44608.06222 | P91: 148.6558146 | Q91: 44608.07834 | R91: -127.2441854 | S91: 44608.09447 | T91: -43.14418539 | U91: 44608.1106
B92: Elevation: Winkel über/unter dem Horizont | L92: 25 | M92: 2022-02-15T14:42:27.023 | N92: =IF(N91-Bahnverlauf!$E$11<-180,N91-Bahnverlauf!$E$11+360,N91-Bahnverlauf!$E$11) -> 41.00581461 | O92: 44608.12673 | P92: 125.1058146 | Q92: 44608.14286 | R92: -150.7941854 | S92: 44608.15899 | T92: -66.69418539 | U92: 44608.17511
B93: Azimut: Kompassrichtung (0/360° = N, 90° = O, 180°= S, 270°=W) | L93: 26 | M93: 2022-02-15T16:15:20.904 | N93: =IF(N92-Bahnverlauf!$E$11<-180,N92-Bahnverlauf!$E$11+360,N92-Bahnverlauf!$E$11) -> 17.45581461 | O93: 44608.19124 | P93: 101.5558146 | Q93: 44608.20737 | R93: -174.3441854 | S93: 44608.2235 | T93: -90.24418539 | U93: 44608.23963
B94: ACHTUNG: 2 Azimute, Distanz bzw. 40000km - Distanz | L94: 27 | M94: 2022-02-15T17:48:14.785 | N94: =IF(N93-Bahnverlauf!$E$11<-180,N93-Bahnverlauf!$E$11+360,N93-Bahnverlauf!$E$11) -> -6.094185393 | O94: 44608.25575 | P94: 78.00581461 | Q94: 44608.27188 | R94: 162.1058146 | S94: 44608.28801 | T94: -113.7941854 | U94: 44608.30414
L95: 28 | M95: 2022-02-15T19:21:08.666 | N95: =IF(N94-Bahnverlauf!$E$11<-180,N94-Bahnverlauf!$E$11+360,N94-Bahnverlauf!$E$11) -> -29.64418539 | O95: 44608.32027 | P95: 54.45581461 | Q95: 44608.33639 | R95: 138.5558146 | S95: 44608.35252 | T95: -137.3441854 | U95: 44608.36865
L96: 29 | M96: 2022-02-15T20:54:02.547 | N96: =IF(N95-Bahnverlauf!$E$11<-180,N95-Bahnverlauf!$E$11+360,N95-Bahnverlauf!$E$11) -> -53.19418539 | O96: 44608.38478 | P96: 30.90581461 | Q96: 44608.40091 | R96: 115.0058146 | S96: 44608.41704 | T96: -160.8941854 | U96: 44608.43316
L97: 30 | M97: 2022-02-15T22:26:56.428 | N97: =IF(N96-Bahnverlauf!$E$11<-180,N96-Bahnverlauf!$E$11+360,N96-Bahnverlauf!$E$11) -> -76.74418539 | O97: 44608.44929 | P97: 7.355814607 | Q97: 44608.46542 | R97: 91.45581461 | S97: 44608.48155 | T97: 175.5558146 | U97: 44608.49768
L98: 31 | M98: 2022-02-15T23:59:50.309 | N98: =IF(N97-Bahnverlauf!$E$11<-180,N97-Bahnverlauf!$E$11+360,N97-Bahnverlauf!$E$11) -> -100.2941854 | O98: 44608.5138 | P98: -16.19418539 | Q98: 44608.52993 | R98: 67.90581461 | S98: 44608.54606 | T98: 152.0058146 | U98: 44608.56219
L99: 32 | M99: 2022-02-16T01:32:44.190 | N99: =IF(N98-Bahnverlauf!$E$11<-180,N98-Bahnverlauf!$E$11+360,N98-Bahnverlauf!$E$11) -> -123.8441854 | O99: 44608.57832 | P99: -39.74418539 | Q99: =O99+$R$30/1440/4 -> 44608.59444 | R99: 44.35581461 | S99: =Q99+$R$30/1440/4 -> 44608.61057 | T99: 128.4558146 | U99: =S99+$R$30/1440/4 -> 44608.6267
L100: 33 | M100: =M99+$R$30/1440 -> 2022-02-16T03:05:38.071 | N100: =IF(N99-Bahnverlauf!$E$11<-180,N99-Bahnverlauf!$E$11+360,N99-Bahnverlauf!$E$11) -> -147.3941854 | O100: =O99+$R$30/1440 -> 44608.64283 | P100: -63.29418539 | Q100: 44608.65896 | R100: 20.80581461 | S100: 44608.67509 | T100: 104.9058146 | U100: 44608.69121
L101: 34 | M101: 2022-02-16T04:38:31.952 | N101: =IF(N100-Bahnverlauf!$E$11<-180,N100-Bahnverlauf!$E$11+360,N100-Bahnverlauf!$E$11) -> -170.9441854 | O101: 44608.70734 | P101: =IF(N101+84.1>180,N101+84.1-360,N101+84.1) -> -86.84418539 | Q101: 44608.72347 | R101: =IF(P101+84.1>180,P101+84.1-360,P101+84.1) -> -2.744185393 | S101: 44608.7396 | T101: =IF(R101+84.1>180,R101+84.1-360,R101+84.1) -> 81.35581461 | U101: 44608.75573
L102: 35 | M102: 2022-02-16T06:11:25.833 | N102: =IF(N101-Bahnverlauf!$E$11<-180,N101-Bahnverlauf!$E$11+360,N101-Bahnverlauf!$E$11) -> 165.5058146 | O102: 44608.77185 | P102: -110.3941854 | Q102: 44608.78798 | R102: -26.29418539 | S102: 44608.80411 | T102: 57.80581461 | U102: 44608.82024
L103: 36 | M103: 2022-02-16T07:44:19.714 | N103: =IF(N102-Bahnverlauf!$E$11<-180,N102-Bahnverlauf!$E$11+360,N102-Bahnverlauf!$E$11) -> 141.9558146 | O103: 44608.83637 | P103: -133.9441854 | Q103: 44608.85249 | R103: -49.84418539 | S103: 44608.86862 | T103: 34.25581461 | U103: 44608.88475
L104: 37 | M104: 2022-02-16T09:17:13.595 | N104: =IF(N103-Bahnverlauf!$E$11<-180,N103-Bahnverlauf!$E$11+360,N103-Bahnverlauf!$E$11) -> 118.4058146 | O104: 44608.90088 | P104: -157.4941854 | Q104: 44608.91701 | R104: -73.39418539 | S104: 44608.93314 | T104: 10.70581461 | U104: 44608.94926
L105: 38 | M105: 2022-02-16T10:50:07.476 | N105: =IF(N104-Bahnverlauf!$E$11<-180,N104-Bahnverlauf!$E$11+360,N104-Bahnverlauf!$E$11) -> 94.85581461 | O105: 44608.96539 | P105: 178.9558146 | Q105: 44608.98152 | R105: -96.94418539 | S105: 44608.99765 | T105: -12.84418539 | U105: 44609.01378
L106: 39 | M106: 2022-02-16T12:23:01.357 | N106: =IF(N105-Bahnverlauf!$E$11<-180,N105-Bahnverlauf!$E$11+360,N105-Bahnverlauf!$E$11) -> 71.30581461 | O106: 44609.0299 | P106: 155.4058146 | Q106: 44609.04603 | R106: -120.4941854 | S106: 44609.06216 | T106: -36.39418539 | U106: 44609.07829
L107: 40 | M107: 2022-02-16T13:55:55.237 | N107: =IF(N106-Bahnverlauf!$E$11<-180,N106-Bahnverlauf!$E$11+360,N106-Bahnverlauf!$E$11) -> 47.75581461 | O107: 44609.09442 | P107: 131.8558146 | Q107: 44609.11054 | R107: -144.0441854 | S107: 44609.12667 | T107: -59.94418539 | U107: 44609.1428
L108: 41 | M108: 2022-02-16T15:28:49.118 | N108: =IF(N107-Bahnverlauf!$E$11<-180,N107-Bahnverlauf!$E$11+360,N107-Bahnverlauf!$E$11) -> 24.20581461 | O108: 44609.15893 | P108: 108.3058146 | Q108: 44609.17506 | R108: -167.5941854 | S108: 44609.19119 | T108: -83.49418539 | U108: 44609.20731
L109: 42 | M109: 2022-02-16T17:01:42.999 | N109: =IF(N108-Bahnverlauf!$E$11<-180,N108-Bahnverlauf!$E$11+360,N108-Bahnverlauf!$E$11) -> 0.6558146073 | O109: 44609.22344 | P109: 84.75581461 | Q109: 44609.23957 | R109: 168.8558146 | S109: 44609.2557 | T109: -107.0441854 | U109: 44609.27183
L110: 43 | M110: 2022-02-16T18:34:36.880 | N110: =IF(N109-Bahnverlauf!$E$11<-180,N109-Bahnverlauf!$E$11+360,N109-Bahnverlauf!$E$11) -> -22.89418539 | O110: 44609.28795 | P110: 61.20581461 | Q110: 44609.30408 | R110: 145.3058146 | S110: 44609.32021 | T110: -130.5941854 | U110: 44609.33634
L111: 44 | M111: 2022-02-16T20:07:30.761 | N111: =IF(N110-Bahnverlauf!$E$11<-180,N110-Bahnverlauf!$E$11+360,N110-Bahnverlauf!$E$11) -> -46.44418539 | O111: 44609.35247 | P111: 37.65581461 | Q111: 44609.36859 | R111: 121.7558146 | S111: 44609.38472 | T111: -154.1441854 | U111: 44609.40085
L112: 45 | M112: 2022-02-16T21:40:24.642 | N112: =IF(N111-Bahnverlauf!$E$11<-180,N111-Bahnverlauf!$E$11+360,N111-Bahnverlauf!$E$11) -> -69.99418539 | O112: 44609.41698 | P112: 14.10581461 | Q112: 44609.43311 | R112: 98.20581461 | S112: 44609.44924 | T112: -177.6941854 | U112: 44609.46536
L113: 46 | M113: 2022-02-16T23:13:18.523 | N113: =IF(N112-Bahnverlauf!$E$11<-180,N112-Bahnverlauf!$E$11+360,N112-Bahnverlauf!$E$11) -> -93.54418539 | O113: 44609.48149 | P113: -9.444185393 | Q113: 44609.49762 | R113: 74.65581461 | S113: 44609.51375 | T113: 158.7558146 | U113: 44609.52988
L114: 47 | M114: 2022-02-17T00:46:12.404 | N114: =IF(N113-Bahnverlauf!$E$11<-180,N113-Bahnverlauf!$E$11+360,N113-Bahnverlauf!$E$11) -> -117.0941854 | O114: 44609.546 | P114: -32.99418539 | Q114: 44609.56213 | R114: 51.10581461 | S114: 44609.57826 | T114: 135.2058146 | U114: 44609.59439
L115: 48 | M115: 2022-02-17T02:19:06.285 | N115: =IF(N114-Bahnverlauf!$E$11<-180,N114-Bahnverlauf!$E$11+360,N114-Bahnverlauf!$E$11) -> -140.6441854 | O115: 44609.61052 | P115: -56.54418539 | Q115: 44609.62664 | R115: 27.55581461 | S115: 44609.64277 | T115: 111.6558146 | U115: 44609.6589
L116: 49 | M116: 2022-02-17T03:52:00.166 | N116: =IF(N115-Bahnverlauf!$E$11<-180,N115-Bahnverlauf!$E$11+360,N115-Bahnverlauf!$E$11) -> -164.1941854 | O116: 44609.67503 | P116: -80.09418539 | Q116: 44609.69116 | R116: 4.005814607 | S116: 44609.70729 | T116: 88.10581461 | U116: 44609.72341
L117: 50 | M117: 2022-02-17T05:24:54.047 | N117: =IF(N116-Bahnverlauf!$E$11<-180,N116-Bahnverlauf!$E$11+360,N116-Bahnverlauf!$E$11) -> 172.2558146 | O117: 44609.73954 | P117: -103.6441854 | Q117: 44609.75567 | R117: -19.54418539 | S117: 44609.7718 | T117: 64.55581461 | U117: 44609.78793
L118: 51 | M118: 2022-02-17T06:57:47.928 | N118: =IF(N117-Bahnverlauf!$E$11<-180,N117-Bahnverlauf!$E$11+360,N117-Bahnverlauf!$E$11) -> 148.7058146 | O118: 44609.80405 | P118: -127.1941854 | Q118: 44609.82018 | R118: -43.09418539 | S118: 44609.83631 | T118: 41.00581461 | U118: 44609.85244
L119: 52 | M119: 2022-02-17T08:30:41.809 | N119: =IF(N118-Bahnverlauf!$E$11<-180,N118-Bahnverlauf!$E$11+360,N118-Bahnverlauf!$E$11) -> 125.1558146 | O119: 44609.86857 | P119: -150.7441854 | Q119: 44609.88469 | R119: -66.64418539 | S119: 44609.90082 | T119: 17.45581461 | U119: 44609.91695
L120: 53 | M120: 2022-02-17T10:03:35.690 | N120: =IF(N119-Bahnverlauf!$E$11<-180,N119-Bahnverlauf!$E$11+360,N119-Bahnverlauf!$E$11) -> 101.6058146 | O120: 44609.93308 | P120: -174.2941854 | Q120: 44609.94921 | R120: -90.19418539 | S120: 44609.96534 | T120: -6.094185393 | U120: 44609.98146
L121: 54 | M121: 2022-02-17T11:36:29.571 | N121: =IF(N120-Bahnverlauf!$E$11<-180,N120-Bahnverlauf!$E$11+360,N120-Bahnverlauf!$E$11) -> 78.05581461 | O121: 44609.99759 | P121: 162.1558146 | Q121: 44610.01372 | R121: -113.7441854 | S121: 44610.02985 | T121: -29.64418539 | U121: 44610.04598
L122: 55 | M122: 2022-02-17T13:09:23.452 | N122: =IF(N121-Bahnverlauf!$E$11<-180,N121-Bahnverlauf!$E$11+360,N121-Bahnverlauf!$E$11) -> 54.50581461 | O122: 44610.0621 | P122: 138.6058146 | Q122: 44610.07823 | R122: -137.2941854 | S122: 44610.09436 | T122: -53.19418539 | U122: 44610.11049
L123: 56 | M123: 2022-02-17T14:42:17.332 | N123: =IF(N122-Bahnverlauf!$E$11<-180,N122-Bahnverlauf!$E$11+360,N122-Bahnverlauf!$E$11) -> 30.95581461 | O123: 44610.12662 | P123: 115.0558146 | Q123: 44610.14274 | R123: -160.8441854 | S123: 44610.15887 | T123: -76.74418539 | U123: 44610.175
L124: 57 | M124: 2022-02-17T16:15:11.213 | N124: =IF(N123-Bahnverlauf!$E$11<-180,N123-Bahnverlauf!$E$11+360,N123-Bahnverlauf!$E$11) -> 7.405814607 | O124: 44610.19113 | P124: 91.50581461 | Q124: 44610.20726 | R124: 175.6058146 | S124: 44610.22339 | T124: -100.2941854 | U124: 44610.23951
L125: 58 | M125: 2022-02-17T17:48:05.094 | N125: =IF(N124-Bahnverlauf!$E$11<-180,N124-Bahnverlauf!$E$11+360,N124-Bahnverlauf!$E$11) -> -16.14418539 | O125: 44610.25564 | P125: 67.95581461 | Q125: 44610.27177 | R125: 152.0558146 | S125: 44610.2879 | T125: -123.8441854 | U125: 44610.30403
L126: 59 | M126: 2022-02-17T19:20:58.975 | N126: =IF(N125-Bahnverlauf!$E$11<-180,N125-Bahnverlauf!$E$11+360,N125-Bahnverlauf!$E$11) -> -39.69418539 | O126: 44610.32015 | P126: 44.40581461 | Q126: 44610.33628 | R126: 128.5058146 | S126: 44610.35241 | T126: -147.3941854 | U126: 44610.36854
L127: 60 | M127: 2022-02-17T20:53:52.856 | N127: =IF(N126-Bahnverlauf!$E$11<-180,N126-Bahnverlauf!$E$11+360,N126-Bahnverlauf!$E$11) -> -63.24418539 | O127: 44610.38467 | P127: 20.85581461 | Q127: 44610.40079 | R127: 104.9558146 | S127: 44610.41692 | T127: -170.9441854 | U127: 44610.43305
L128: 61 | M128: 2022-02-17T22:26:46.737 | N128: =IF(N127-Bahnverlauf!$E$11<-180,N127-Bahnverlauf!$E$11+360,N127-Bahnverlauf!$E$11) -> -86.79418539 | O128: 44610.44918 | P128: -2.694185393 | Q128: 44610.46531 | R128: 81.40581461 | S128: 44610.48144 | T128: 165.5058146 | U128: 44610.49756
L129: 62 | M129: 2022-02-17T23:59:40.618 | N129: =IF(N128-Bahnverlauf!$E$11<-180,N128-Bahnverlauf!$E$11+360,N128-Bahnverlauf!$E$11) -> -110.3441854 | O129: 44610.51369 | P129: -26.24418539 | Q129: 44610.52982 | R129: 57.85581461 | S129: 44610.54595 | T129: 141.9558146 | U129: 44610.56208
L130: 63 | M130: 2022-02-18T01:32:34.499 | N130: =IF(N129-Bahnverlauf!$E$11<-180,N129-Bahnverlauf!$E$11+360,N129-Bahnverlauf!$E$11) -> -133.8941854 | O130: 44610.5782 | P130: -49.79418539 | Q130: 44610.59433 | R130: 34.30581461 | S130: 44610.61046 | T130: 118.4058146 | U130: 44610.62659
L131: 64 | M131: 2022-02-18T03:05:28.380 | N131: =IF(N130-Bahnverlauf!$E$11<-180,N130-Bahnverlauf!$E$11+360,N130-Bahnverlauf!$E$11) -> -157.4441854 | O131: 44610.64272 | P131: -73.34418539 | Q131: =O131+$R$30/1440/4 -> 44610.65884 | R131: 10.75581461 | S131: =Q131+$R$30/1440/4 -> 44610.67497 | T131: 94.85581461 | U131: =S131+$R$30/1440/4 -> 44610.6911
L132: 65 | M132: =M131+$R$30/1440 -> 2022-02-18T04:38:22.261 | N132: =IF(N131-Bahnverlauf!$E$11<-180,N131-Bahnverlauf!$E$11+360,N131-Bahnverlauf!$E$11) -> 179.0058146 | O132: =O131+$R$30/1440 -> 44610.70723 | P132: -96.89418539 | Q132: 44610.72336 | R132: -12.79418539 | S132: 44610.73949 | T132: 71.30581461 | U132: 44610.75561
L133: 66 | M133: 2022-02-18T06:11:16.142 | N133: =IF(N132-Bahnverlauf!$E$11<-180,N132-Bahnverlauf!$E$11+360,N132-Bahnverlauf!$E$11) -> 155.4558146 | O133: 44610.77174 | P133: -120.4441854 | Q133: 44610.78787 | R133: -36.34418539 | S133: 44610.804 | T133: 47.75581461 | U133: 44610.82013
L134: 67 | M134: 2022-02-18T07:44:10.023 | N134: =IF(N133-Bahnverlauf!$E$11<-180,N133-Bahnverlauf!$E$11+360,N133-Bahnverlauf!$E$11) -> 131.9058146 | O134: 44610.83625 | P134: -143.9941854 | Q134: 44610.85238 | R134: -59.89418539 | S134: 44610.86851 | T134: 24.20581461 | U134: 44610.88464
L135: 68 | M135: 2022-02-18T09:17:03.904 | N135: =IF(N134-Bahnverlauf!$E$11<-180,N134-Bahnverlauf!$E$11+360,N134-Bahnverlauf!$E$11) -> 108.3558146 | O135: 44610.90077 | P135: -167.5441854 | Q135: 44610.91689 | R135: -83.44418539 | S135: 44610.93302 | T135: 0.6558146073 | U135: 44610.94915
L136: 69 | M136: 2022-02-18T10:49:57.785 | N136: =IF(N135-Bahnverlauf!$E$11<-180,N135-Bahnverlauf!$E$11+360,N135-Bahnverlauf!$E$11) -> 84.80581461 | O136: 44610.96528 | P136: 168.9058146 | Q136: 44610.98141 | R136: -106.9941854 | S136: 44610.99754 | T136: -22.89418539 | U136: 44611.01366
L137: 70 | M137: 2022-02-18T12:22:51.666 | N137: =IF(N136-Bahnverlauf!$E$11<-180,N136-Bahnverlauf!$E$11+360,N136-Bahnverlauf!$E$11) -> 61.25581461 | O137: 44611.02979 | P137: 145.3558146 | Q137: 44611.04592 | R137: -130.5441854 | S137: 44611.06205 | T137: -46.44418539 | U137: 44611.07818
L138: 71 | M138: 2022-02-18T13:55:45.547 | N138: =IF(N137-Bahnverlauf!$E$11<-180,N137-Bahnverlauf!$E$11+360,N137-Bahnverlauf!$E$11) -> 37.70581461 | O138: 44611.0943 | P138: 121.8058146 | Q138: 44611.11043 | R138: -154.0941854 | S138: 44611.12656 | T138: -69.99418539 | U138: 44611.14269
L139: 72 | M139: 2022-02-18T15:28:39.427 | N139: =IF(N138-Bahnverlauf!$E$11<-180,N138-Bahnverlauf!$E$11+360,N138-Bahnverlauf!$E$11) -> 14.15581461 | O139: 44611.15882 | P139: 98.25581461 | Q139: 44611.17494 | R139: -177.6441854 | S139: 44611.19107 | T139: -93.54418539 | U139: 44611.2072
L140: 73 | M140: 2022-02-18T17:01:33.308 | N140: =IF(N139-Bahnverlauf!$E$11<-180,N139-Bahnverlauf!$E$11+360,N139-Bahnverlauf!$E$11) -> -9.394185393 | O140: 44611.22333 | P140: 74.70581461 | Q140: 44611.23946 | R140: 158.8058146 | S140: 44611.25559 | T140: -117.0941854 | U140: 44611.27171
L141: 74 | M141: 2022-02-18T18:34:27.189 | N141: =IF(N140-Bahnverlauf!$E$11<-180,N140-Bahnverlauf!$E$11+360,N140-Bahnverlauf!$E$11) -> -32.94418539 | O141: 44611.28784 | P141: 51.15581461 | Q141: 44611.30397 | R141: 135.2558146 | S141: 44611.3201 | T141: -140.6441854 | U141: 44611.33623
L142: 75 | M142: 2022-02-18T20:07:21.070 | N142: =IF(N141-Bahnverlauf!$E$11<-180,N141-Bahnverlauf!$E$11+360,N141-Bahnverlauf!$E$11) -> -56.49418539 | O142: 44611.35235 | P142: 27.60581461 | Q142: 44611.36848 | R142: 111.7058146 | S142: 44611.38461 | T142: -164.1941854 | U142: 44611.40074
L143: 76 | M143: 2022-02-18T21:40:14.951 | N143: =IF(N142-Bahnverlauf!$E$11<-180,N142-Bahnverlauf!$E$11+360,N142-Bahnverlauf!$E$11) -> -80.04418539 | O143: 44611.41687 | P143: 4.055814607 | Q143: 44611.43299 | R143: 88.15581461 | S143: 44611.44912 | T143: 172.2558146 | U143: 44611.46525
L144: 77 | M144: 2022-02-18T23:13:08.832 | N144: =IF(N143-Bahnverlauf!$E$11<-180,N143-Bahnverlauf!$E$11+360,N143-Bahnverlauf!$E$11) -> -103.5941854 | O144: 44611.48138 | P144: -19.49418539 | Q144: 44611.49751 | R144: 64.60581461 | S144: 44611.51364 | T144: 148.7058146 | U144: 44611.52976
L145: 78 | M145: 2022-02-19T00:46:02.713 | N145: =IF(N144-Bahnverlauf!$E$11<-180,N144-Bahnverlauf!$E$11+360,N144-Bahnverlauf!$E$11) -> -127.1441854 | O145: 44611.54589 | P145: -43.04418539 | Q145: 44611.56202 | R145: 41.05581461 | S145: 44611.57815 | T145: 125.1558146 | U145: 44611.59428
L146: 79 | M146: 2022-02-19T02:18:56.594 | N146: =IF(N145-Bahnverlauf!$E$11<-180,N145-Bahnverlauf!$E$11+360,N145-Bahnverlauf!$E$11) -> -150.6941854 | O146: 44611.6104 | P146: -66.59418539 | Q146: 44611.62653 | R146: 17.50581461 | S146: 44611.64266 | T146: 101.6058146 | U146: 44611.65879
L147: 80 | M147: 2022-02-19T03:51:50.475 | N147: =IF(N146-Bahnverlauf!$E$11<-180,N146-Bahnverlauf!$E$11+360,N146-Bahnverlauf!$E$11) -> -174.2441854 | O147: 44611.67492 | P147: -90.14418539 | Q147: 44611.69105 | R147: -6.044185393 | S147: 44611.70717 | T147: 78.05581461 | U147: 44611.7233
L148: 81 | M148: 2022-02-19T05:24:44.356 | N148: =IF(N147-Bahnverlauf!$E$11<-180,N147-Bahnverlauf!$E$11+360,N147-Bahnverlauf!$E$11) -> 162.2058146 | O148: 44611.73943 | P148: =IF(N148+84.1>180,N148+84.1-360,N148+84.1) -> -113.6941854 | Q148: 44611.75556 | R148: =IF(P148+84.1>180,P148+84.1-360,P148+84.1) -> -29.59418539 | S148: 44611.77169 | T148: =IF(R148+84.1>180,R148+84.1-360,R148+84.1) -> 54.50581461 | U148: 44611.78781
L149: 82 | M149: 2022-02-19T06:57:38.237 | N149: =IF(N148-Bahnverlauf!$E$11<-180,N148-Bahnverlauf!$E$11+360,N148-Bahnverlauf!$E$11) -> 138.6558146 | O149: 44611.80394 | P149: -137.2441854 | Q149: 44611.82007 | R149: -53.14418539 | S149: 44611.8362 | T149: 30.95581461 | U149: 44611.85233
L150: 83 | M150: 2022-02-19T08:30:32.118 | N150: =IF(N149-Bahnverlauf!$E$11<-180,N149-Bahnverlauf!$E$11+360,N149-Bahnverlauf!$E$11) -> 115.1058146 | O150: 44611.86845 | P150: -160.7941854 | Q150: 44611.88458 | R150: -76.69418539 | S150: 44611.90071 | T150: 7.405814607 | U150: 44611.91684
L151: 84 | M151: 2022-02-19T10:03:25.999 | N151: =IF(N150-Bahnverlauf!$E$11<-180,N150-Bahnverlauf!$E$11+360,N150-Bahnverlauf!$E$11) -> 91.55581461 | O151: 44611.93297 | P151: 175.6558146 | Q151: 44611.9491 | R151: -100.2441854 | S151: 44611.96522 | T151: -16.14418539 | U151: 44611.98135
L152: 85 | M152: 2022-02-19T11:36:19.880 | N152: =IF(N151-Bahnverlauf!$E$11<-180,N151-Bahnverlauf!$E$11+360,N151-Bahnverlauf!$E$11) -> 68.00581461 | O152: 44611.99748 | P152: 152.1058146 | Q152: 44612.01361 | R152: -123.7941854 | S152: 44612.02974 | T152: -39.69418539 | U152: 44612.04586
L153: 86 | M153: 2022-02-19T13:09:13.761 | N153: =IF(N152-Bahnverlauf!$E$11<-180,N152-Bahnverlauf!$E$11+360,N152-Bahnverlauf!$E$11) -> 44.45581461 | O153: 44612.06199 | P153: 128.5558146 | Q153: 44612.07812 | R153: -147.3441854 | S153: 44612.09425 | T153: -63.24418539 | U153: 44612.11038
L154: 87 | M154: 2022-02-19T14:42:07.641 | N154: =IF(N153-Bahnverlauf!$E$11<-180,N153-Bahnverlauf!$E$11+360,N153-Bahnverlauf!$E$11) -> 20.90581461 | O154: 44612.1265 | P154: 105.0058146 | Q154: 44612.14263 | R154: -170.8941854 | S154: 44612.15876 | T154: -86.79418539 | U154: 44612.17489
L155: 88 | M155: 2022-02-19T16:15:01.522 | N155: =IF(N154-Bahnverlauf!$E$11<-180,N154-Bahnverlauf!$E$11+360,N154-Bahnverlauf!$E$11) -> -2.644185393 | O155: 44612.19102 | P155: 81.45581461 | Q155: 44612.20715 | R155: 165.5558146 | S155: 44612.22327 | T155: -110.3441854 | U155: 44612.2394
L156: 89 | M156: 2022-02-19T17:47:55.403 | N156: =IF(N155-Bahnverlauf!$E$11<-180,N155-Bahnverlauf!$E$11+360,N155-Bahnverlauf!$E$11) -> -26.19418539 | O156: 44612.25553 | P156: 57.90581461 | Q156: 44612.27166 | R156: 142.0058146 | S156: 44612.28779 | T156: -133.8941854 | U156: 44612.30391
L157: 90 | M157: 2022-02-19T19:20:49.284 | N157: =IF(N156-Bahnverlauf!$E$11<-180,N156-Bahnverlauf!$E$11+360,N156-Bahnverlauf!$E$11) -> -49.74418539 | O157: 44612.32004 | P157: 34.35581461 | Q157: 44612.33617 | R157: 118.4558146 | S157: 44612.3523 | T157: -157.4441854 | U157: 44612.36843

Sheet Berechnung Position
B1: Wo befindet sich die ISS gerade?
B3: Formeln aus
B4: Roth (Hrsg.), Handbuch für Sternfreunde, Teil 2
B5: Springer Verlag, Berlin Heidelberg 1989
B7: Erdumfang | C7: 40075 | D7: km | F7: Eingabe
B8: Erdradius | C8: 6371 | D8: km | F8: Eingabe
B9: Mittlere Höhe der Umlaufbahn | C9: =Eingabe!R13 -> 418 | D9: km | F9: Eingabe!R13
B10: Kreisbahngeschwindigkeit | C10: =7.9*SQRT(C8/(C8+C9)) -> 7.65293438 | D10: km/s | F10: 7,9*WURZEL(C8/(C8+C9))
C11: =C10*3600 -> 27550.56377 | D11: km/h | F11: C10*3600
B12: U Umlaufzeit | C12: =2*PI()*((C8+C9)/C10) -> 5573.880937 | D12: Sekunden | F12: 2*PI()*((C8+C9)/C10)
C13: =C12/60 -> 92.89801561 | D13: Minuten | F13: C12/60
B14: I Bahnneigung (Inklination) | C14: =Eingabe!R15 -> 51.64 | D14: Grad | F14: Eingabe!R15
B15: Zeitpunkt EPOCHE (nach Zeitzone) | C15: =Eingabe!R17+Eingabe!R19+Eingabe!J5/24 -> 2022-02-14T14:21:25 | F15: Eingabe!R17+Eingabe!R19+Eingabe!J5/24
B17: W Rektaszension des aufsteigenden Knotens | C17: =Eingabe!H42 -> 223.8874 | D17: Grad | F17: Eingabe!H42
B18: p Präzession (Knotenwanderung, nach Westen) | C18: =10*COS(RADIANS(C14))*(C8/(C8+C9))^(7/2) -> 4.968421289 | D18: Grad /Tag | F18: 10*COS(BOGENMASS(C14))*(C8/(C8+C9))^(7/2)
B20: l0 Länge des aufsteigenden Äquatordurchgangs | C20: =C108 -> -90.24418539 | D20: Grad | F20: C108
B22: Argument des Perigäums (w) | C22: =Eingabe!R23 -> 130.5821 | D22: Grad | F22: Eingabe!R23
B23: Mittlere Anomalie (n) | C23: =Eingabe!R25 -> 339.7825 | D23: Grad | F23: Eingabe!R25
B25: S (w + n) | C25: =C22+C23 -> 470.3646 | D25: Grad | F25: C22+C23
B27: Zeitpunkt EQX vor laufender Epoche | C27: =C25/360*C13 -> 121.3776054 | D27: Minuten | F27: C25/360*C13
C29: =C27/60 -> 2.02296009 | D29: Stunden | F29: C27/60
B31: Z0 Zeitpunkt Knoten (aufsteigend) | C31: =C15-C29/24 -> 2022-02-14T12:20:02.344 | F31: C15-C29/24
B37: Aktuelle Systemzeit des Computers (Makro) | C37: =Eingabe!B10 -> 15.02.2022 18:17:57 | F37: Eingabe!B10
B39: Z Zeit nach erstem Äquatordurchgang | C39: =(C37-C31)*86400 -> 107874.6563 | D39: Sekunden | F39: (C37-C31)*86400
C40: =C39/3600 -> 29.96518231 | D40: Stunden | F40: C39/3600
C41: =C40/24 -> 1.248549263 | D41: Tage | F41: C40/24
C42: =C39/C12 -> 19.35359896 | D42: Umläufe | F42: C39/C12
B43: L´ Längendifferenz bei still stehender Erde | C43: =ATAN(COS(RADIANS(C14))*TAN(RADIANS((360/C12)*C39)))*180/PI() -> -39.17258318 | D43: Grad | F43: ARCTAN(COS(BOGENMASS(C14))*TAN(BOGENMASS((360/C12)*C39)))*180/PI()
B45: ISS
B46: j Geographische Breite | C46: =ASIN(SIN(RADIANS(C14))*SIN(RADIANS(360/C12*C39)))*180/PI() -> 38.59331615 | D46: =C46 -> 38.59331615 | F46: ARCSIN(SIN(BOGENMASS(C14))*SIN(BOGENMASS(360/C12*C20)))*180/PI()
F47: C46
B48: S (w + n) / 360°*23,55 | C48: =(C22+C23)/360*23.55 -> 30.76968425 | F48: (C22+C23)/360*23,55
B50: Zwischenwert Länge | C50: =C20+C43-0.25*C39/60-(C18+0.986)*C39/86400 -> -586.3288916 | F50: C20+C43-0,25*C39/60-(C18+0,986)*C39/86400
B54: Reduziertauf 360 Grad | C54: =C50-(INT(C50/360)*360) -> 133.6711084 | F54: C50-(GANZZAHL(C50/360)*360)
B55: l Geographische Länge | C55: =IF(C43*C46<0,C54-180,C54) -> -46.32889157 | D55: =IF(C55>180,C55-360,C55) -> -46.32889157 | F55: WENN(C43*C46<0;C54-180;C54)
F56: WENN(C55>180;C55-360;C55)
B57: Beobachtungsort
B58: j Geographische Breite | C58: =Eingabe!D5 -> 52.4 | F58: Eingabe!D5
B59: l Geographische Länge | C59: =Eingabe!G5 -> 9.75 | F59: Eingabe!G5
B61: Formeln aus: Ein globaler dreidimensionaler Wegweiser für den Schulhof, | F61: b = Bogenlänge | H61: jA geographische Breite des Ortes A | J61: lA geographische Länge des Ortes A
B62: Arbeitshilfe 19.46, Schulbiologiezentrum Hannover | F62: d = Distanz | H62: jB geographische Breite des Ortes B | J62: lB geographische Länge des Ortes B
B64: Orthodrome | M64: cos b = sin jA * sin jB + cos jA * cos jB * cos l
B65: cos b | C65: =SIN(RADIANS(C58))*SIN(RADIANS(D46))+COS(RADIANS(C58))*COS(RADIANS(D46))*COS((RADIANS(D55-C59))) -> 0.7603473803 | F65: SIN(BOGENMASS(C58))*SIN(BOGENMASS(D46))+COS(BOGENMASS(C58))*COS(BOGENMASS(D46))*COS((BOGENMASS(D55-C59))) | M65: l = lB – lA
B66: b | C66: =ACOS(C65)*180/PI() -> 40.50516825 | F66: ARCCOS(C65)*180/PI() | M66: d = b * p / 180
B67: Distanz (Fußpunkt) | C67: =C66*C8*PI()/180 -> 4503.969212 | D67: km | F67: C66*6731*PI()/180
B69: Elevation
B70: Zentralwinkel (°) | C70: =C67/C7*360 -> 40.45986067 | F70: C67/C7*360
B71: Distanz Luftlinie (km) | C71: =SQRT(C8^2+(C8+C9)^2-2*C8*(C8+C9)*COS(RADIANS(C70))) -> 4567.446642 | F71: WURZEL(C8^2+(C8+C9)^2-2*C8*(C8+C9)*COS(BOGENMASS(C70)))
B72: b (°) | C72: =ACOS(((C8+C9)^2-C8^2-C71^2)/(-2*C8*C71))*180/PI() -> 74.69622537 | F72: ARCCOS(((C8+C9)^2-C8^2-C71^2)/(-2*C8*C71))*180/PI()
B73: Elevation (°) | C73: =IF(C72>90,C72-90,C72-90) -> -15.30377463 | F73: WENN(C72>90;C72-90;C72-90) | M73: β = acos(((r+h)^2 - r^2- dsat^2) / (-2 * r * dsat))
B75: Azimut
B76: cot | C76: =(-SIN(RADIANS(C58))*COS(RADIANS(D55-C59))+TAN(RADIANS(D46))*COS(RADIANS(C58)))/SIN(RADIANS(D55-C59)) -> -0.05401022171 | F76: (-SIN(BOGENMASS(C58))*COS(BOGENMASS(D55-C59))+TAN(BOGENMASS(D46))*COS(BOGENMASS(C58)))/SIN(BOGENMASS(D55-C59)) | M76: cot a = (-sin jA * cos l + tan jB * cos jA) / sin l
B77: tan | C77: =1/C76 -> -18.51501379 | F77: 1/C76 | M77: Richtung
B78: Alpha (°) | C78: =ATAN(C77)*180/PI() -> -86.90844604 | F78: ARCTAN(C77)*180/PI() | M78: (Anfangs-Kurswinkel der Orthodrome)
B79: Azimut (N) | C79: =IF(C78>0,C78,360+C78) -> 273.091554 | F79: WENN(C78>0;C78;360+C78) | M79: cot a = (-sin jA * cos l + tan jB * cos jA) / sin l
B80: Azimut (S) | C80: =IF(C78>0,180+C78,180+C78) -> 93.09155396 | F80: WENN(C78>0;180+C78;180+C78) | M80: l = lB – lA
M81: tan a = 1/ cot a
B86: Sternzeit (GMST) zum Zeitpunkt des EQX | M86: Julianisches Datum: Anzahl der Tage seit dem 01. Januar -4723, 00:00 UT
B87: Datum (00:00 UTC) | C87: =Eingabe!C42 -> 2022-02-14 | F87: Eingabe!C42
B88: Uhrzeit (UTC) | C88: =Eingabe!E42 -> 13:21:25 | F88: Eingabe!E42
B89: Julianisches Datum JD (00:00UTC) | C89: =2451544.5+C87-DATE(2000,1,1) -> 2459624.5 | F89: 2451544,5+C87-DATUM(2000;1;1) | M89: T: Anzahl der dem 01.01.2000 vergangenen Jahrhunderte seit
B90: T | C90: =(C89-2451545)/36525 -> 0.2212046543 | F90: (C89-2451545)/36525
B91: Länge | C91: 0 | F91: 0
B92: Uhrzeit | C92: =C87+C88+1/24 -> 2022-02-14T14:21:25 | F92: C87+C88+1/24
B93: Zeit (h) seit 00:00 (UTC) | C93: =(C92-INT(C92))*24 -> 14.35694444 | F93: (C92-GANZZAHL(C92))*24 | M93: Greenwich Mean Sidereal Time (heute, 00:00 UT)
B94: In Sekunden | C94: =C93*3600-3600 -> 48085 | F94: C93*3600-3600
C95: =24110.54841+8640184.812866*C90+0.093104*C90^2-0.0000062*C90^3+240*C91+1.002738*C94 -> 1983576.305 | F95: 24110,54841+8640184,812866*C90+0,093104*C90^2-0,0000062*C90^3+240*C91+1,002738*C94
C96: =C95/3600 -> 550.993418 | F96: C95/3600
C97: =(C96/24-INT(C96/24))*24 -> 22.99341798 | F97: (C96/24-GANZZAHL(C96/24))*24 | M97: Local Mean Sidereal Time
B98: GMST | C98: =C97/24 -> 22:59:36.305 | F98: C97/24
B101: l0 Länge EQX
B102: Sternzeit | C102: =C98*24 -> 22.99341798 | F102: C98*24
B103: Rekt. Sternzeit | C103: =C102/24*360 -> 344.9012696 | D103: Grad | F103: C102/24*360
B104: RAAN | C104: =Eingabe!H42 -> 223.8874 | F104: Eingabe!H42
B107: Länge (w+n) hinzugefügt TEST
A108: Länge EQX | B108: =C104-C103+C48 -> -90.24418539 | C108: =IF(B108<-180,B108+360,IF(B108>180,B108-360,B108)) -> -90.24418539 | D108: Grad | F108: C104-C103+C48
F109: WENN(B108<-180;B108+360;WENN(B108>180;B108-360;B108))
C110: =IF(B108<-180,B108+360,IF(B108>180,B108-360,B108)) -> -90.24418539 | F110: WENN(B108<-180;B108+360;WENN(B108>180;B108-360;B108))
B111: Alternativ
B113: GMST(0)
B114: =Eingabe!C42 -> 2022-02-14
C115: =24110.54841+8640184.812866*C90+0.093104*C90^2-0.0000062*C90^3 -> 1935359.648 | F115: 24110,54841+8640184,812866*C90+0,093104*C90^2-0,0000062*C90^3
C117: =C115/3600/24 -> 22.39999593 | F117: C115/3600/24
B119: EQX | C119: =C88 -> 13:21:25 | F119: C88
B124: GMST (EQX) | C124: =C117+C119 -> 22.95653528 | F124: C117+C119
C126: =HOUR(C124) -> 22 | D126: Stunden | F126: STUNDE(C124)
C127: =MINUTE(C124) -> 57 | D127: Minuten | F127: MINUTE(C124)
C128: =SECOND(C124) -> 25 | D128: Sekunden | F128: SEKUNDE(C124)
B130: Dezimalformat | C130: =C126+C127/60+C128/3600 -> 22.95694444 | F130: C126+C127/60+C128/3600
B132: l0 Länge EQX
B133: Rekt. Sternzeit | C133: =C130/24*360 -> 344.3541667 | D133: Grad | F133: C130/24*360
B134: RAAN | C134: =Eingabe!R21 -> 223.8874 | F134: Eingabe!R21
B135: Länge EQX | C135: =C134-C133 -> -120.4667667 | D135: =IF(C135<-180,C135+360,IF(C135>180,C135-360,C135)) -> -120.4667667 | E135: Grad | F135: C134-C133
F136: WENN(C135<-180;C135+360;WENN(C135>180;C135-360;C135))
B140: Zahl der Umrundungen
B141: Umlaufzeit | C141: =C13 -> 92.89801561 | D141: min | F141: C13
C143: =C141/60 -> 1.54830026 | D143: h | F143: C141/60
B145: errechnet | C145: =24/C143 -> 15.50086932 | F145: 24/C143

Sheet Bahnverlauf
B7: Amplitude (Bahnneigung) | E7: =Eingabe!R15 -> 51.64 | J7: Eingabe!R17
B9: λ bei Äquatordurchgang | E9: =Eingabe!C44 -> -90.24418539 | J9: Eingabe!C44
B11: Versatz / Umlauf | E11: 23.55 | F11: GRAD
B13: Länge + 180 | D13: Länge - Erddrehung - Präzession | J13: Breite | M13: Länge | N13: Breite
D14: Versatz | F14: GANZZAHL(B14/360) | H14: F14*360 | J14: SIN(BOGENMASS(A17))*$F$2 | L14: B14-H14-180 | M14: D14-GANZZAHL(D14/360)*360-180 | N14: J14
B15: B2+180 | M15: =Eingabe!G5 -> 9.75 | N15: =Eingabe!D5 -> 52.4
A17: 0 | B17: =$E$9+180 -> 89.75581461 | D17: =B17-A17/360*$E$11 -> 89.75581461 | F17: =INT(B17/360) -> 0 | H17: =F17*360 -> 0 | J17: =SIN(RADIANS(A17))*$E$7 -> 0 | L17: =B17-H17-180 -> -90.24418539 | M17: =D17-INT(D17/360)*360-180 -> -90.24418539 | N17: =J17 -> 0 | Q17: =D17 -> 89.75581461 | R17: =N17 -> 0
A18: 1 | B18: =$B$17+A18 -> 90.75581461 | D18: =B18-A18/360*$E$11 -> 90.69039794 | F18: 0 | H18: 0 | J18: 0.9012422684 | L18: -89.24418539 | M18: =D18-INT(D18/360)*360-180 -> -89.30960206 | N18: =J18 -> 0.9012422684 | Q18: 90.69039794 | R18: 0.9012422684
A19: 2 | B19: =$B$17+A19 -> 91.75581461 | D19: 91.62498127 | F19: 0 | H19: 0 | J19: 1.80221001 | L19: -88.24418539 | M19: -88.37501873 | N19: 1.80221001 | Q19: 91.62498127 | R19: 1.80221001
A20: 3 | B20: 92.75581461 | D20: 92.55956461 | F20: 0 | H20: 0 | J20: 2.70262878 | L20: -87.24418539 | M20: -87.44043539 | N20: 2.70262878 | Q20: 92.55956461 | R20: 2.70262878
A21: 4 | B21: 93.75581461 | D21: 93.49414794 | F21: 0 | H21: 0 | J21: 3.602224304 | L21: -86.24418539 | M21: -86.50585206 | N21: 3.602224304 | Q21: 93.49414794 | R21: 3.602224304
A22: 5 | B22: 94.75581461 | D22: 94.42873127 | F22: 0 | H22: 0 | J22: 4.500722555 | L22: -85.24418539 | M22: -85.57126873 | N22: 4.500722555 | Q22: 94.42873127 | R22: 4.500722555
A23: 6 | B23: 95.75581461 | D23: 95.36331461 | F23: 0 | H23: 0 | J23: 5.397849843 | L23: -84.24418539 | M23: -84.63668539 | N23: 5.397849843 | Q23: 95.36331461 | R23: 5.397849843
A24: 7 | B24: 96.75581461 | D24: 96.29789794 | F24: 0 | H24: 0 | J24: 6.293332893 | L24: -83.24418539 | M24: -83.70210206 | N24: 6.293332893 | Q24: 96.29789794 | R24: 6.293332893
A25: 8 | B25: 97.75581461 | D25: 97.23248127 | F25: 0 | H25: 0 | J25: 7.186898934 | L25: -82.24418539 | M25: -82.76751873 | N25: 7.186898934 | Q25: 97.23248127 | R25: 7.186898934
A26: 9 | B26: 98.75581461 | D26: 98.16706461 | F26: 0 | H26: 0 | J26: 8.078275775 | L26: -81.24418539 | M26: -81.83293539 | N26: 8.078275775 | Q26: 98.16706461 | R26: 8.078275775
A27: 10 | B27: 99.75581461 | D27: 99.10164794 | F27: 0 | H27: 0 | J27: 8.967191895 | L27: -80.24418539 | M27: -80.89835206 | N27: 8.967191895 | Q27: 99.10164794 | R27: 8.967191895
A28: 11 | B28: 100.7558146 | D28: 100.0362313 | F28: 0 | H28: 0 | J28: 9.853376521 | L28: -79.24418539 | M28: -79.96376873 | N28: 9.853376521 | Q28: 100.0362313 | R28: 9.853376521
A29: 12 | B29: 101.7558146 | D29: 100.9708146 | F29: 0 | H29: 0 | J29: 10.73655971 | L29: -78.24418539 | M29: -79.02918539 | N29: 10.73655971 | Q29: 100.9708146 | R29: 10.73655971
A30: 13 | B30: 102.7558146 | D30: 101.9053979 | F30: 0 | H30: 0 | J30: 11.61647245 | L30: -77.24418539 | M30: -78.09460206 | N30: 11.61647245 | Q30: 101.9053979 | R30: 11.61647245
A31: 14 | B31: 103.7558146 | D31: 102.8399813 | F31: 0 | H31: 0 | J31: 12.49284669 | L31: -76.24418539 | M31: -77.16001873 | N31: 12.49284669 | Q31: 102.8399813 | R31: 12.49284669
A32: 15 | B32: 104.7558146 | D32: 103.7745646 | F32: 0 | H32: 0 | J32: 13.36541549 | L32: -75.24418539 | M32: -76.22543539 | N32: 13.36541549 | Q32: 103.7745646 | R32: 13.36541549
A33: 16 | B33: 105.7558146 | D33: 104.7091479 | F33: 0 | H33: 0 | J33: 14.23391305 | L33: -74.24418539 | M33: -75.29085206 | N33: 14.23391305 | Q33: 104.7091479 | R33: 14.23391305
A34: 17 | B34: 106.7558146 | D34: 105.6437313 | F34: 0 | H34: 0 | J34: 15.09807483 | L34: -73.24418539 | M34: -74.35626873 | N34: 15.09807483 | Q34: 105.6437313 | R34: 15.09807483
A35: 18 | B35: 107.7558146 | D35: 106.5783146 | F35: 0 | H35: 0 | J35: 15.95763759 | L35: -72.24418539 | M35: -73.42168539 | N35: 15.95763759 | Q35: 106.5783146 | R35: 15.95763759
A36: 19 | B36: 108.7558146 | D36: 107.5128979 | F36: 0 | H36: 0 | J36: 16.8123395 | L36: -71.24418539 | M36: -72.48710206 | N36: 16.8123395 | Q36: 107.5128979 | R36: 16.8123395
A37: 20 | B37: 109.7558146 | D37: 108.4474813 | F37: 0 | H37: 0 | J37: 17.6619202 | L37: -70.24418539 | M37: -71.55251873 | N37: 17.6619202 | Q37: 108.4474813 | R37: 17.6619202
A38: 21 | B38: 110.7558146 | D38: 109.3820646 | F38: 0 | H38: 0 | J38: 18.50612091 | L38: -69.24418539 | M38: -70.61793539 | N38: 18.50612091 | Q38: 109.3820646 | R38: 18.50612091
A39: 22 | B39: 111.7558146 | D39: 110.3166479 | F39: 0 | H39: 0 | J39: 19.34468448 | L39: -68.24418539 | M39: -69.68335206 | N39: 19.34468448 | Q39: 110.3166479 | R39: 19.34468448
A40: 23 | B40: 112.7558146 | D40: 111.2512313 | F40: 0 | H40: 0 | J40: 20.17735548 | L40: -67.24418539 | M40: -68.74876873 | N40: 20.17735548 | Q40: 111.2512313 | R40: 20.17735548
A41: 24 | B41: 113.7558146 | D41: 112.1858146 | F41: 0 | H41: 0 | J41: 21.00388025 | L41: -66.24418539 | M41: -67.81418539 | N41: 21.00388025 | Q41: 112.1858146 | R41: 21.00388025
A42: 25 | B42: 114.7558146 | D42: 113.1203979 | F42: 0 | H42: 0 | J42: 21.82400704 | L42: -65.24418539 | M42: -66.87960206 | N42: 21.82400704 | Q42: 113.1203979 | R42: 21.82400704
A43: 26 | B43: 115.7558146 | D43: 114.0549813 | F43: 0 | H43: 0 | J43: 22.63748602 | L43: -64.24418539 | M43: -65.94501873 | N43: 22.63748602 | Q43: 114.0549813 | R43: 22.63748602
A44: 27 | B44: 116.7558146 | D44: 114.9895646 | F44: 0 | H44: 0 | J44: 23.44406941 | L44: -63.24418539 | M44: -65.01043539 | N44: 23.44406941 | Q44: 114.9895646 | R44: 23.44406941
A45: 28 | B45: 117.7558146 | D45: 115.9241479 | F45: 0 | H45: 0 | J45: 24.2435115 | L45: -62.24418539 | M45: -64.07585206 | N45: 24.2435115 | Q45: 115.9241479 | R45: 24.2435115
A46: 29 | B46: 118.7558146 | D46: 116.8587313 | F46: 0 | H46: 0 | J46: 25.03556879 | L46: -61.24418539 | M46: -63.14126873 | N46: 25.03556879 | Q46: 116.8587313 | R46: 25.03556879
A47: 30 | B47: 119.7558146 | D47: 117.7933146 | F47: 0 | H47: 0 | J47: 25.82 | L47: -60.24418539 | M47: -62.20668539 | N47: 25.82 | Q47: 117.7933146 | R47: 25.82
A48: 31 | B48: 120.7558146 | D48: 118.7278979 | F48: 0 | H48: 0 | J48: 26.59656619 | L48: -59.24418539 | M48: -61.27210206 | N48: 26.59656619 | Q48: 118.7278979 | R48: 26.59656619
A49: 32 | B49: 121.7558146 | D49: 119.6624813 | F49: 0 | H49: 0 | J49: 27.36503081 | L49: -58.24418539 | M49: -60.33751873 | N49: 27.36503081 | Q49: 119.6624813 | R49: 27.36503081
A50: 33 | B50: 122.7558146 | D50: 120.5970646 | F50: 0 | H50: 0 | J50: 28.12515977 | L50: -57.24418539 | M50: -59.40293539 | N50: 28.12515977 | Q50: 120.5970646 | R50: 28.12515977
A51: 34 | B51: 123.7558146 | D51: 121.5316479 | F51: 0 | H51: 0 | J51: 28.87672154 | L51: -56.24418539 | M51: -58.46835206 | N51: 28.87672154 | Q51: 121.5316479 | R51: 28.87672154
A52: 35 | B52: 124.7558146 | D52: 122.4662313 | F52: 0 | H52: 0 | J52: 29.61948717 | L52: -55.24418539 | M52: -57.53376873 | N52: 29.61948717 | Q52: 122.4662313 | R52: 29.61948717
A53: 36 | B53: 125.7558146 | D53: 123.4008146 | F53: 0 | H53: 0 | J53: 30.35323043 | L53: -54.24418539 | M53: -56.59918539 | N53: 30.35323043 | Q53: 123.4008146 | R53: 30.35323043
A54: 37 | B54: 126.7558146 | D54: 124.3353979 | F54: 0 | H54: 0 | J54: 31.0777278 | L54: -53.24418539 | M54: -55.66460206 | N54: 31.0777278 | Q54: 124.3353979 | R54: 31.0777278
A55: 38 | B55: 127.7558146 | D55: 125.2699813 | F55: 0 | H55: 0 | J55: 31.79275859 | L55: -52.24418539 | M55: -54.73001873 | N55: 31.79275859 | Q55: 125.2699813 | R55: 31.79275859
A56: 39 | B56: 128.7558146 | D56: 126.2045646 | F56: 0 | H56: 0 | J56: 32.49810499 | L56: -51.24418539 | M56: -53.79543539 | N56: 32.49810499 | Q56: 126.2045646 | R56: 32.49810499
A57: 40 | B57: 129.7558146 | D57: 127.1391479 | F57: 0 | H57: 0 | J57: 33.19355216 | L57: -50.24418539 | M57: -52.86085206 | N57: 33.19355216 | Q57: 127.1391479 | R57: 33.19355216
A58: 41 | B58: 130.7558146 | D58: 128.0737313 | F58: 0 | H58: 0 | J58: 33.87888826 | L58: -49.24418539 | M58: -51.92626873 | N58: 33.87888826 | Q58: 128.0737313 | R58: 33.87888826
A59: 42 | B59: 131.7558146 | D59: 129.0083146 | F59: 0 | H59: 0 | J59: 34.55390451 | L59: -48.24418539 | M59: -50.99168539 | N59: 34.55390451 | Q59: 129.0083146 | R59: 34.55390451
A60: 43 | B60: 132.7558146 | D60: 129.9428979 | F60: 0 | H60: 0 | J60: 35.21839531 | L60: -47.24418539 | M60: -50.05710206 | N60: 35.21839531 | Q60: 129.9428979 | R60: 35.21839531
A61: 44 | B61: 133.7558146 | D61: 130.8774813 | F61: 0 | H61: 0 | J61: 35.87215825 | L61: -46.24418539 | M61: -49.12251873 | N61: 35.87215825 | Q61: 130.8774813 | R61: 35.87215825
A62: 45 | B62: 134.7558146 | D62: 131.8120646 | F62: 0 | H62: 0 | J62: 36.51499418 | L62: -45.24418539 | M62: -48.18793539 | N62: 36.51499418 | Q62: 131.8120646 | R62: 36.51499418
A63: 46 | B63: 135.7558146 | D63: 132.7466479 | F63: 0 | H63: 0 | J63: 37.14670729 | L63: -44.24418539 | M63: -47.25335206 | N63: 37.14670729 | Q63: 132.7466479 | R63: 37.14670729
A64: 47 | B64: 136.7558146 | D64: 133.6812313 | F64: 0 | H64: 0 | J64: 37.76710515 | L64: -43.24418539 | M64: -46.31876873 | N64: 37.76710515 | Q64: 133.6812313 | R64: 37.76710515
A65: 48 | B65: 137.7558146 | D65: 134.6158146 | F65: 0 | H65: 0 | J65: 38.37599879 | L65: -42.24418539 | M65: -45.38418539 | N65: 38.37599879 | Q65: 134.6158146 | R65: 38.37599879
A66: 49 | B66: 138.7558146 | D66: 135.5503979 | F66: 0 | H66: 0 | J66: 38.97320272 | L66: -41.24418539 | M66: -44.44960206 | N66: 38.97320272 | Q66: 135.5503979 | R66: 38.97320272
A67: 50 | B67: 139.7558146 | D67: 136.4849813 | F67: 0 | H67: 0 | J67: 39.55853504 | L67: -40.24418539 | M67: -43.51501873 | N67: 39.55853504 | Q67: 136.4849813 | R67: 39.55853504
A68: 51 | B68: 140.7558146 | D68: 137.4195646 | F68: 0 | H68: 0 | J68: 40.13181745 | L68: -39.24418539 | M68: -42.58043539 | N68: 40.13181745 | Q68: 137.4195646 | R68: 40.13181745
A69: 52 | B69: 141.7558146 | D69: 138.3541479 | F69: 0 | H69: 0 | J69: 40.69287532 | L69: -38.24418539 | M69: -41.64585206 | N69: 40.69287532 | Q69: 138.3541479 | R69: 40.69287532
A70: 53 | B70: 142.7558146 | D70: 139.2887313 | F70: 0 | H70: 0 | J70: 41.24153774 | L70: -37.24418539 | M70: -40.71126873 | N70: 41.24153774 | Q70: 139.2887313 | R70: 41.24153774
A71: 54 | B71: 143.7558146 | D71: 140.2233146 | F71: 0 | H71: 0 | J71: 41.77763759 | L71: -36.24418539 | M71: -39.77668539 | N71: 41.77763759 | Q71: 140.2233146 | R71: 41.77763759
A72: 55 | B72: 144.7558146 | D72: 141.1578979 | F72: 0 | H72: 0 | J72: 42.30101157 | L72: -35.24418539 | M72: -38.84210206 | N72: 42.30101157 | Q72: 141.1578979 | R72: 42.30101157
A73: 56 | B73: 145.7558146 | D73: 142.0924813 | F73: 0 | H73: 0 | J73: 42.81150025 | L73: -34.24418539 | M73: -37.90751873 | N73: 42.81150025 | Q73: 142.0924813 | R73: 42.81150025
A74: 57 | B74: 146.7558146 | D74: 143.0270646 | F74: 0 | H74: 0 | J74: 43.30894813 | L74: -33.24418539 | M74: -36.97293539 | N74: 43.30894813 | Q74: 143.0270646 | R74: 43.30894813
A75: 58 | B75: 147.7558146 | D75: 143.9616479 | F75: 0 | H75: 0 | J75: 43.79320369 | L75: -32.24418539 | M75: -36.03835206 | N75: 43.79320369 | Q75: 143.9616479 | R75: 43.79320369
A76: 59 | B76: 148.7558146 | D76: 144.8962313 | F76: 0 | H76: 0 | J76: 44.26411941 | L76: -31.24418539 | M76: -35.10376873 | N76: 44.26411941 | Q76: 144.8962313 | R76: 44.26411941
A77: 60 | B77: 149.7558146 | D77: 145.8308146 | F77: 0 | H77: 0 | J77: 44.72155185 | L77: -30.24418539 | M77: -34.16918539 | N77: 44.72155185 | Q77: 145.8308146 | R77: 44.72155185
A78: 61 | B78: 150.7558146 | D78: 146.7653979 | F78: 0 | H78: 0 | J78: 45.16536168 | L78: -29.24418539 | M78: -33.23460206 | N78: 45.16536168 | Q78: 146.7653979 | R78: 45.16536168
A79: 62 | B79: 151.7558146 | D79: 147.6999813 | F79: 0 | H79: 0 | J79: 45.5954137 | L79: -28.24418539 | M79: -32.30001873 | N79: 45.5954137 | Q79: 147.6999813 | R79: 45.5954137
A80: 63 | B80: 152.7558146 | D80: 148.6345646 | F80: 0 | H80: 0 | J80: 46.01157691 | L80: -27.24418539 | M80: -31.36543539 | N80: 46.01157691 | Q80: 148.6345646 | R80: 46.01157691
A81: 64 | B81: 153.7558146 | D81: =B81-A81/360*$E$11 -> 149.5691479 | F81: =INT(B81/360) -> 0 | H81: =F81*360 -> 0 | J81: =SIN(RADIANS(A81))*$E$7 -> 46.41372455 | L81: =B81-H81-180 -> -26.24418539 | M81: =D81-INT(D81/360)*360-180 -> -30.43085206 | N81: 46.41372455 | Q81: =D81 -> 149.5691479 | R81: =N81 -> 46.41372455
A82: 65 | B82: 154.7558146 | D82: 150.5037313 | F82: 0 | H82: 0 | J82: 46.80173412 | L82: -25.24418539 | M82: -29.49626873 | N82: =J82 -> 46.80173412 | Q82: 150.5037313 | R82: 46.80173412
A83: 66 | B83: =$B$17+A83 -> 155.7558146 | D83: 151.4383146 | F83: 0 | H83: 0 | J83: 47.17548743 | L83: -24.24418539 | M83: -28.56168539 | N83: 47.17548743 | Q83: 151.4383146 | R83: 47.17548743
A84: 67 | B84: 156.7558146 | D84: 152.3728979 | F84: 0 | H84: 0 | J84: 47.53487063 | L84: -23.24418539 | M84: -27.62710206 | N84: 47.53487063 | Q84: 152.3728979 | R84: 47.53487063
A85: 68 | B85: 157.7558146 | D85: 153.3074813 | F85: 0 | H85: 0 | J85: 47.87977425 | L85: -22.24418539 | M85: -26.69251873 | N85: 47.87977425 | Q85: 153.3074813 | R85: 47.87977425
A86: 69 | B86: 158.7558146 | D86: 154.2420646 | F86: 0 | H86: 0 | J86: 48.21009322 | L86: -21.24418539 | M86: -25.75793539 | N86: 48.21009322 | Q86: 154.2420646 | R86: 48.21009322
A87: 70 | B87: 159.7558146 | D87: 155.1766479 | F87: 0 | H87: 0 | J87: 48.52572694 | L87: -20.24418539 | M87: -24.82335206 | N87: 48.52572694 | Q87: 155.1766479 | R87: 48.52572694
A88: 71 | B88: 160.7558146 | D88: 156.1112313 | F88: 0 | H88: 0 | J88: 48.82657924 | L88: -19.24418539 | M88: -23.88876873 | N88: 48.82657924 | Q88: 156.1112313 | R88: 48.82657924
A89: 72 | B89: 161.7558146 | D89: 157.0458146 | F89: 0 | H89: 0 | J89: 49.1125585 | L89: -18.24418539 | M89: -22.95418539 | N89: 49.1125585 | Q89: 157.0458146 | R89: 49.1125585
A90: 73 | B90: 162.7558146 | D90: 157.9803979 | F90: 0 | H90: 0 | J90: 49.3835776 | L90: -17.24418539 | M90: -22.01960206 | N90: 49.3835776 | Q90: 157.9803979 | R90: 49.3835776
A91: 74 | B91: 163.7558146 | D91: 158.9149813 | F91: 0 | H91: 0 | J91: 49.63955398 | L91: -16.24418539 | M91: -21.08501873 | N91: 49.63955398 | Q91: 158.9149813 | R91: 49.63955398
A92: 75 | B92: 164.7558146 | D92: 159.8495646 | F92: 0 | H92: 0 | J92: 49.88040967 | L92: -15.24418539 | M92: -20.15043539 | N92: 49.88040967 | Q92: 159.8495646 | R92: 49.88040967
A93: 76 | B93: 165.7558146 | D93: 160.7841479 | F93: 0 | H93: 0 | J93: 50.1060713 | L93: -14.24418539 | M93: -19.21585206 | N93: 50.1060713 | Q93: 160.7841479 | R93: 50.1060713
A94: 77 | B94: 166.7558146 | D94: 161.7187313 | F94: 0 | H94: 0 | J94: 50.31647015 | L94: -13.24418539 | M94: -18.28126873 | N94: 50.31647015 | Q94: 161.7187313 | R94: 50.31647015
A95: 78 | B95: 167.7558146 | D95: 162.6533146 | F95: 0 | H95: 0 | J95: 50.5115421 | L95: -12.24418539 | M95: -17.34668539 | N95: 50.5115421 | Q95: 162.6533146 | R95: 50.5115421
A96: 79 | B96: 168.7558146 | D96: 163.5878979 | F96: 0 | H96: 0 | J96: 50.69122775 | L96: -11.24418539 | M96: -16.41210206 | N96: 50.69122775 | Q96: 163.5878979 | R96: 50.69122775
A97: 80 | B97: 169.7558146 | D97: 164.5224813 | F97: 0 | H97: 0 | J97: 50.85547237 | L97: -10.24418539 | M97: -15.47751873 | N97: 50.85547237 | Q97: 164.5224813 | R97: 50.85547237
A98: 81 | B98: 170.7558146 | D98: 165.4570646 | F98: 0 | H98: 0 | J98: 51.00422591 | L98: -9.244185393 | M98: -14.54293539 | N98: 51.00422591 | Q98: 165.4570646 | R98: 51.00422591
A99: 82 | B99: 171.7558146 | D99: 166.3916479 | F99: 0 | H99: 0 | J99: 51.13744307 | L99: -8.244185393 | M99: -13.60835206 | N99: 51.13744307 | Q99: 166.3916479 | R99: 51.13744307
A100: 83 | B100: 172.7558146 | D100: 167.3262313 | F100: 0 | H100: 0 | J100: 51.25508327 | L100: -7.244185393 | M100: -12.67376873 | N100: 51.25508327 | Q100: 167.3262313 | R100: 51.25508327
A101: 84 | B101: 173.7558146 | D101: 168.2608146 | F101: 0 | H101: 0 | J101: 51.35711068 | L101: -6.244185393 | M101: -11.73918539 | N101: 51.35711068 | Q101: 168.2608146 | R101: 51.35711068
A102: 85 | B102: 174.7558146 | D102: 169.1953979 | F102: 0 | H102: 0 | J102: 51.44349421 | L102: -5.244185393 | M102: -10.80460206 | N102: 51.44349421 | Q102: 169.1953979 | R102: 51.44349421
A103: 86 | B103: 175.7558146 | D103: 170.1299813 | F103: 0 | H103: 0 | J103: 51.51420756 | L103: -4.244185393 | M103: -9.870018726 | N103: 51.51420756 | Q103: 170.1299813 | R103: 51.51420756
A104: 87 | B104: 176.7558146 | D104: 171.0645646 | F104: 0 | H104: 0 | J104: 51.56922917 | L104: -3.244185393 | M104: -8.935435393 | N104: 51.56922917 | Q104: 171.0645646 | R104: 51.56922917
A105: 88 | B105: 177.7558146 | D105: 171.9991479 | F105: 0 | H105: 0 | J105: 51.60854231 | L105: -2.244185393 | M105: -8.000852059 | N105: 51.60854231 | Q105: 171.9991479 | R105: 51.60854231
A106: 89 | B106: 178.7558146 | D106: 172.9337313 | F106: 0 | H106: 0 | J106: 51.63213498 | L106: -1.244185393 | M106: -7.066268726 | N106: 51.63213498 | Q106: 172.9337313 | R106: 51.63213498
A107: 90 | B107: 179.7558146 | D107: 173.8683146 | F107: 0 | H107: 0 | J107: 51.64 | L107: -0.2441853927 | M107: -6.131685393 | N107: 51.64 | Q107: 173.8683146 | R107: 51.64
A108: 91 | B108: 180.7558146 | D108: 174.8028979 | F108: 0 | H108: 0 | J108: 51.63213498 | L108: 0.7558146073 | M108: -5.197102059 | N108: 51.63213498 | Q108: 174.8028979 | R108: 51.63213498
A109: 92 | B109: 181.7558146 | D109: 175.7374813 | F109: 0 | H109: 0 | J109: 51.60854231 | L109: 1.755814607 | M109: -4.262518726 | N109: 51.60854231 | Q109: 175.7374813 | R109: 51.60854231
A110: 93 | B110: 182.7558146 | D110: 176.6720646 | F110: 0 | H110: 0 | J110: 51.56922917 | L110: 2.755814607 | M110: -3.327935393 | N110: 51.56922917 | Q110: 176.6720646 | R110: 51.56922917
A111: 94 | B111: 183.7558146 | D111: 177.6066479 | F111: 0 | H111: 0 | J111: 51.51420756 | L111: 3.755814607 | M111: -2.393352059 | N111: 51.51420756 | Q111: 177.6066479 | R111: 51.51420756
A112: 95 | B112: 184.7558146 | D112: 178.5412313 | F112: 0 | H112: 0 | J112: 51.44349421 | L112: 4.755814607 | M112: -1.458768726 | N112: 51.44349421 | Q112: 178.5412313 | R112: 51.44349421
A113: 96 | B113: 185.7558146 | D113: 179.4758146 | F113: 0 | H113: 0 | J113: 51.35711068 | L113: 5.755814607 | M113: -0.5241853927 | N113: 51.35711068 | Q113: 179.4758146 | R113: 51.35711068
A114: 97 | B114: 186.7558146 | D114: 180.4103979 | F114: 0 | H114: 0 | J114: 51.25508327 | L114: 6.755814607 | M114: 0.4103979406 | N114: 51.25508327 | Q114: 180.4103979 | R114: 51.25508327
A115: 98 | B115: 187.7558146 | D115: 181.3449813 | F115: 0 | H115: 0 | J115: 51.13744307 | L115: 7.755814607 | M115: 1.344981274 | N115: 51.13744307 | Q115: 181.3449813 | R115: 51.13744307
A116: 99 | B116: 188.7558146 | D116: 182.2795646 | F116: 0 | H116: 0 | J116: 51.00422591 | L116: 8.755814607 | M116: 2.279564607 | N116: 51.00422591 | Q116: 182.2795646 | R116: 51.00422591
A117: 100 | B117: 189.7558146 | D117: 183.2141479 | F117: 0 | H117: 0 | J117: 50.85547237 | L117: 9.755814607 | M117: 3.214147941 | N117: 50.85547237 | Q117: 183.2141479 | R117: 50.85547237
A118: 101 | B118: 190.7558146 | D118: 184.1487313 | F118: 0 | H118: 0 | J118: 50.69122775 | L118: 10.75581461 | M118: 4.148731274 | N118: 50.69122775 | Q118: 184.1487313 | R118: 50.69122775
A119: 102 | B119: 191.7558146 | D119: 185.0833146 | F119: 0 | H119: 0 | J119: 50.5115421 | L119: 11.75581461 | M119: 5.083314607 | N119: 50.5115421 | Q119: 185.0833146 | R119: 50.5115421
A120: 103 | B120: 192.7558146 | D120: 186.0178979 | F120: 0 | H120: 0 | J120: 50.31647015 | L120: 12.75581461 | M120: 6.017897941 | N120: 50.31647015 | Q120: 186.0178979 | R120: 50.31647015
A121: 104 | B121: 193.7558146 | D121: 186.9524813 | F121: 0 | H121: 0 | J121: 50.1060713 | L121: 13.75581461 | M121: 6.952481274 | N121: 50.1060713 | Q121: 186.9524813 | R121: 50.1060713
A122: 105 | B122: 194.7558146 | D122: 187.8870646 | F122: 0 | H122: 0 | J122: 49.88040967 | L122: 14.75581461 | M122: 7.887064607 | N122: 49.88040967 | Q122: 187.8870646 | R122: 49.88040967
A123: 106 | B123: 195.7558146 | D123: 188.8216479 | F123: 0 | H123: 0 | J123: 49.63955398 | L123: 15.75581461 | M123: 8.821647941 | N123: 49.63955398 | Q123: 188.8216479 | R123: 49.63955398
A124: 107 | B124: 196.7558146 | D124: 189.7562313 | F124: 0 | H124: 0 | J124: 49.3835776 | L124: 16.75581461 | M124: 9.756231274 | N124: 49.3835776 | Q124: 189.7562313 | R124: 49.3835776
A125: 108 | B125: 197.7558146 | D125: 190.6908146 | F125: 0 | H125: 0 | J125: 49.1125585 | L125: 17.75581461 | M125: 10.69081461 | N125: 49.1125585 | Q125: 190.6908146 | R125: 49.1125585
A126: 109 | B126: 198.7558146 | D126: 191.6253979 | F126: 0 | H126: 0 | J126: 48.82657924 | L126: 18.75581461 | M126: 11.62539794 | N126: 48.82657924 | Q126: 191.6253979 | R126: 48.82657924
A127: 110 | B127: 199.7558146 | D127: 192.5599813 | F127: 0 | H127: 0 | J127: 48.52572694 | L127: 19.75581461 | M127: 12.55998127 | N127: 48.52572694 | Q127: 192.5599813 | R127: 48.52572694
A128: 111 | B128: 200.7558146 | D128: 193.4945646 | F128: 0 | H128: 0 | J128: 48.21009322 | L128: 20.75581461 | M128: 13.49456461 | N128: 48.21009322 | Q128: 193.4945646 | R128: 48.21009322
A129: 112 | B129: 201.7558146 | D129: 194.4291479 | F129: 0 | H129: 0 | J129: 47.87977425 | L129: 21.75581461 | M129: 14.42914794 | N129: 47.87977425 | Q129: 194.4291479 | R129: 47.87977425
A130: 113 | B130: 202.7558146 | D130: 195.3637313 | F130: 0 | H130: 0 | J130: 47.53487063 | L130: 22.75581461 | M130: 15.36373127 | N130: 47.53487063 | Q130: 195.3637313 | R130: 47.53487063
A131: 114 | B131: 203.7558146 | D131: 196.2983146 | F131: 0 | H131: 0 | J131: 47.17548743 | L131: 23.75581461 | M131: 16.29831461 | N131: 47.17548743 | Q131: 196.2983146 | R131: 47.17548743
A132: 115 | B132: 204.7558146 | D132: 197.2328979 | F132: 0 | H132: 0 | J132: 46.80173412 | L132: 24.75581461 | M132: 17.23289794 | N132: 46.80173412 | Q132: 197.2328979 | R132: 46.80173412
A133: 116 | B133: 205.7558146 | D133: 198.1674813 | F133: 0 | H133: 0 | J133: 46.41372455 | L133: 25.75581461 | M133: 18.16748127 | N133: 46.41372455 | Q133: 198.1674813 | R133: 46.41372455
A134: 117 | B134: 206.7558146 | D134: 199.1020646 | F134: 0 | H134: 0 | J134: 46.01157691 | L134: 26.75581461 | M134: 19.10206461 | N134: 46.01157691 | Q134: 199.1020646 | R134: 46.01157691
A135: 118 | B135: 207.7558146 | D135: 200.0366479 | F135: 0 | H135: 0 | J135: 45.5954137 | L135: 27.75581461 | M135: 20.03664794 | N135: 45.5954137 | Q135: 200.0366479 | R135: 45.5954137
A136: 119 | B136: 208.7558146 | D136: 200.9712313 | F136: 0 | H136: 0 | J136: 45.16536168 | L136: 28.75581461 | M136: 20.97123127 | N136: 45.16536168 | Q136: 200.9712313 | R136: 45.16536168
A137: 120 | B137: 209.7558146 | D137: 201.9058146 | F137: 0 | H137: 0 | J137: 44.72155185 | L137: 29.75581461 | M137: 21.90581461 | N137: 44.72155185 | Q137: 201.9058146 | R137: 44.72155185
A138: 121 | B138: 210.7558146 | D138: 202.8403979 | F138: 0 | H138: 0 | J138: 44.26411941 | L138: 30.75581461 | M138: 22.84039794 | N138: 44.26411941 | Q138: 202.8403979 | R138: 44.26411941
A139: 122 | B139: 211.7558146 | D139: 203.7749813 | F139: 0 | H139: 0 | J139: 43.79320369 | L139: 31.75581461 | M139: 23.77498127 | N139: 43.79320369 | Q139: 203.7749813 | R139: 43.79320369
A140: 123 | B140: 212.7558146 | D140: 204.7095646 | F140: 0 | H140: 0 | J140: 43.30894813 | L140: 32.75581461 | M140: 24.70956461 | N140: 43.30894813 | Q140: 204.7095646 | R140: 43.30894813
A141: 124 | B141: 213.7558146 | D141: 205.6441479 | F141: 0 | H141: 0 | J141: 42.81150025 | L141: 33.75581461 | M141: 25.64414794 | N141: 42.81150025 | Q141: 205.6441479 | R141: 42.81150025
A142: 125 | B142: 214.7558146 | D142: 206.5787313 | F142: 0 | H142: 0 | J142: 42.30101157 | L142: 34.75581461 | M142: 26.57873127 | N142: 42.30101157 | Q142: 206.5787313 | R142: 42.30101157
A143: 126 | B143: 215.7558146 | D143: 207.5133146 | F143: 0 | H143: 0 | J143: 41.77763759 | L143: 35.75581461 | M143: 27.51331461 | N143: 41.77763759 | Q143: 207.5133146 | R143: 41.77763759
A144: 127 | B144: 216.7558146 | D144: 208.4478979 | F144: 0 | H144: 0 | J144: 41.24153774 | L144: 36.75581461 | M144: 28.44789794 | N144: 41.24153774 | Q144: 208.4478979 | R144: 41.24153774
A145: 128 | B145: 217.7558146 | D145: =B145-A145/360*$E$11 -> 209.3824813 | F145: =INT(B145/360) -> 0 | H145: =F145*360 -> 0 | J145: =SIN(RADIANS(A145))*$E$7 -> 40.69287532 | L145: =B145-H145-180 -> 37.75581461 | M145: =D145-INT(D145/360)*360-180 -> 29.38248127 | N145: 40.69287532 | Q145: =D145 -> 209.3824813 | R145: =N145 -> 40.69287532
A146: 129 | B146: 218.7558146 | D146: 210.3170646 | F146: 0 | H146: 0 | J146: 40.13181745 | L146: 38.75581461 | M146: 30.31706461 | N146: =J146 -> 40.13181745 | Q146: 210.3170646 | R146: 40.13181745
A147: 130 | B147: =$B$17+A147 -> 219.7558146 | D147: 211.2516479 | F147: 0 | H147: 0 | J147: 39.55853504 | L147: 39.75581461 | M147: 31.25164794 | N147: 39.55853504 | Q147: 211.2516479 | R147: 39.55853504
A148: 131 | B148: 220.7558146 | D148: 212.1862313 | F148: 0 | H148: 0 | J148: 38.97320272 | L148: 40.75581461 | M148: 32.18623127 | N148: 38.97320272 | Q148: 212.1862313 | R148: 38.97320272
A149: 132 | B149: 221.7558146 | D149: 213.1208146 | F149: 0 | H149: 0 | J149: 38.37599879 | L149: 41.75581461 | M149: 33.12081461 | N149: 38.37599879 | Q149: 213.1208146 | R149: 38.37599879
A150: 133 | B150: 222.7558146 | D150: 214.0553979 | F150: 0 | H150: 0 | J150: 37.76710515 | L150: 42.75581461 | M150: 34.05539794 | N150: 37.76710515 | Q150: 214.0553979 | R150: 37.76710515
A151: 134 | B151: 223.7558146 | D151: 214.9899813 | F151: 0 | H151: 0 | J151: 37.14670729 | L151: 43.75581461 | M151: 34.98998127 | N151: 37.14670729 | Q151: 214.9899813 | R151: 37.14670729
A152: 135 | B152: 224.7558146 | D152: 215.9245646 | F152: 0 | H152: 0 | J152: 36.51499418 | L152: 44.75581461 | M152: 35.92456461 | N152: 36.51499418 | Q152: 215.9245646 | R152: 36.51499418
A153: 136 | B153: 225.7558146 | D153: 216.8591479 | F153: 0 | H153: 0 | J153: 35.87215825 | L153: 45.75581461 | M153: 36.85914794 | N153: 35.87215825 | Q153: 216.8591479 | R153: 35.87215825
A154: 137 | B154: 226.7558146 | D154: 217.7937313 | F154: 0 | H154: 0 | J154: 35.21839531 | L154: 46.75581461 | M154: 37.79373127 | N154: 35.21839531 | Q154: 217.7937313 | R154: 35.21839531
A155: 138 | B155: 227.7558146 | D155: 218.7283146 | F155: 0 | H155: 0 | J155: 34.55390451 | L155: 47.75581461 | M155: 38.72831461 | N155: 34.55390451 | Q155: 218.7283146 | R155: 34.55390451
A156: 139 | B156: 228.7558146 | D156: 219.6628979 | F156: 0 | H156: 0 | J156: 33.87888826 | L156: 48.75581461 | M156: 39.66289794 | N156: 33.87888826 | Q156: 219.6628979 | R156: 33.87888826
A157: 140 | B157: 229.7558146 | D157: 220.5974813 | F157: 0 | H157: 0 | J157: 33.19355216 | L157: 49.75581461 | M157: 40.59748127 | N157: 33.19355216 | Q157: 220.5974813 | R157: 33.19355216
A158: 141 | B158: 230.7558146 | D158: 221.5320646 | F158: 0 | H158: 0 | J158: 32.49810499 | L158: 50.75581461 | M158: 41.53206461 | N158: 32.49810499 | Q158: 221.5320646 | R158: 32.49810499
A159: 142 | B159: 231.7558146 | D159: 222.4666479 | F159: 0 | H159: 0 | J159: 31.79275859 | L159: 51.75581461 | M159: 42.46664794 | N159: 31.79275859 | Q159: 222.4666479 | R159: 31.79275859
A160: 143 | B160: 232.7558146 | D160: 223.4012313 | F160: 0 | H160: 0 | J160: 31.0777278 | L160: 52.75581461 | M160: 43.40123127 | N160: 31.0777278 | Q160: 223.4012313 | R160: 31.0777278
A161: 144 | B161: 233.7558146 | D161: 224.3358146 | F161: 0 | H161: 0 | J161: 30.35323043 | L161: 53.75581461 | M161: 44.33581461 | N161: 30.35323043 | Q161: 224.3358146 | R161: 30.35323043
A162: 145 | B162: 234.7558146 | D162: 225.2703979 | F162: 0 | H162: 0 | J162: 29.61948717 | L162: 54.75581461 | M162: 45.27039794 | N162: 29.61948717 | Q162: 225.2703979 | R162: 29.61948717
A163: 146 | B163: 235.7558146 | D163: 226.2049813 | F163: 0 | H163: 0 | J163: 28.87672154 | L163: 55.75581461 | M163: 46.20498127 | N163: 28.87672154 | Q163: 226.2049813 | R163: 28.87672154
A164: 147 | B164: 236.7558146 | D164: 227.1395646 | F164: 0 | H164: 0 | J164: 28.12515977 | L164: 56.75581461 | M164: 47.13956461 | N164: 28.12515977 | Q164: 227.1395646 | R164: 28.12515977
A165: 148 | B165: 237.7558146 | D165: 228.0741479 | F165: 0 | H165: 0 | J165: 27.36503081 | L165: 57.75581461 | M165: 48.07414794 | N165: 27.36503081 | Q165: 228.0741479 | R165: 27.36503081
A166: 149 | B166: 238.7558146 | D166: 229.0087313 | F166: 0 | H166: 0 | J166: 26.59656619 | L166: 58.75581461 | M166: 49.00873127 | N166: 26.59656619 | Q166: 229.0087313 | R166: 26.59656619
A167: 150 | B167: 239.7558146 | D167: 229.9433146 | F167: 0 | H167: 0 | J167: 25.82 | L167: 59.75581461 | M167: 49.94331461 | N167: 25.82 | Q167: 229.9433146 | R167: 25.82
A168: 151 | B168: 240.7558146 | D168: 230.8778979 | F168: 0 | H168: 0 | J168: 25.03556879 | L168: 60.75581461 | M168: 50.87789794 | N168: 25.03556879 | Q168: 230.8778979 | R168: 25.03556879
A169: 152 | B169: 241.7558146 | D169: 231.8124813 | F169: 0 | H169: 0 | J169: 24.2435115 | L169: 61.75581461 | M169: 51.81248127 | N169: 24.2435115 | Q169: 231.8124813 | R169: 24.2435115
A170: 153 | B170: 242.7558146 | D170: 232.7470646 | F170: 0 | H170: 0 | J170: 23.44406941 | L170: 62.75581461 | M170: 52.74706461 | N170: 23.44406941 | Q170: 232.7470646 | R170: 23.44406941
A171: 154 | B171: 243.7558146 | D171: 233.6816479 | F171: 0 | H171: 0 | J171: 22.63748602 | L171: 63.75581461 | M171: 53.68164794 | N171: 22.63748602 | Q171: 233.6816479 | R171: 22.63748602
A172: 155 | B172: 244.7558146 | D172: 234.6162313 | F172: 0 | H172: 0 | J172: 21.82400704 | L172: 64.75581461 | M172: 54.61623127 | N172: 21.82400704 | Q172: 234.6162313 | R172: 21.82400704
A173: 156 | B173: 245.7558146 | D173: 235.5508146 | F173: 0 | H173: 0 | J173: 21.00388025 | L173: 65.75581461 | M173: 55.55081461 | N173: 21.00388025 | Q173: 235.5508146 | R173: 21.00388025
A174: 157 | B174: 246.7558146 | D174: 236.4853979 | F174: 0 | H174: 0 | J174: 20.17735548 | L174: 66.75581461 | M174: 56.48539794 | N174: 20.17735548 | Q174: 236.4853979 | R174: 20.17735548
A175: 158 | B175: 247.7558146 | D175: 237.4199813 | F175: 0 | H175: 0 | J175: 19.34468448 | L175: 67.75581461 | M175: 57.41998127 | N175: 19.34468448 | Q175: 237.4199813 | R175: 19.34468448
A176: 159 | B176: 248.7558146 | D176: 238.3545646 | F176: 0 | H176: 0 | J176: 18.50612091 | L176: 68.75581461 | M176: 58.35456461 | N176: 18.50612091 | Q176: 238.3545646 | R176: 18.50612091
A177: 160 | B177: 249.7558146 | D177: 239.2891479 | F177: 0 | H177: 0 | J177: 17.6619202 | L177: 69.75581461 | M177: 59.28914794 | N177: 17.6619202 | Q177: 239.2891479 | R177: 17.6619202
A178: 161 | B178: 250.7558146 | D178: 240.2237313 | F178: 0 | H178: 0 | J178: 16.8123395 | L178: 70.75581461 | M178: 60.22373127 | N178: 16.8123395 | Q178: 240.2237313 | R178: 16.8123395
A179: 162 | B179: 251.7558146 | D179: 241.1583146 | F179: 0 | H179: 0 | J179: 15.95763759 | L179: 71.75581461 | M179: 61.15831461 | N179: 15.95763759 | Q179: 241.1583146 | R179: 15.95763759
A180: 163 | B180: 252.7558146 | D180: 242.0928979 | F180: 0 | H180: 0 | J180: 15.09807483 | L180: 72.75581461 | M180: 62.09289794 | N180: 15.09807483 | Q180: 242.0928979 | R180: 15.09807483
A181: 164 | B181: 253.7558146 | D181: 243.0274813 | F181: 0 | H181: 0 | J181: 14.23391305 | L181: 73.75581461 | M181: 63.02748127 | N181: 14.23391305 | Q181: 243.0274813 | R181: 14.23391305
A182: 165 | B182: 254.7558146 | D182: 243.9620646 | F182: 0 | H182: 0 | J182: 13.36541549 | L182: 74.75581461 | M182: 63.96206461 | N182: 13.36541549 | Q182: 243.9620646 | R182: 13.36541549
A183: 166 | B183: 255.7558146 | D183: 244.8966479 | F183: 0 | H183: 0 | J183: 12.49284669 | L183: 75.75581461 | M183: 64.89664794 | N183: 12.49284669 | Q183: 244.8966479 | R183: 12.49284669
A184: 167 | B184: 256.7558146 | D184: 245.8312313 | F184: 0 | H184: 0 | J184: 11.61647245 | L184: 76.75581461 | M184: 65.83123127 | N184: 11.61647245 | Q184: 245.8312313 | R184: 11.61647245
A185: 168 | B185: 257.7558146 | D185: 246.7658146 | F185: 0 | H185: 0 | J185: 10.73655971 | L185: 77.75581461 | M185: 66.76581461 | N185: 10.73655971 | Q185: 246.7658146 | R185: 10.73655971
A186: 169 | B186: 258.7558146 | D186: 247.7003979 | F186: 0 | H186: 0 | J186: 9.853376521 | L186: 78.75581461 | M186: 67.70039794 | N186: 9.853376521 | Q186: 247.7003979 | R186: 9.853376521
A187: 170 | B187: 259.7558146 | D187: 248.6349813 | F187: 0 | H187: 0 | J187: 8.967191895 | L187: 79.75581461 | M187: 68.63498127 | N187: 8.967191895 | Q187: 248.6349813 | R187: 8.967191895
A188: 171 | B188: 260.7558146 | D188: 249.5695646 | F188: 0 | H188: 0 | J188: 8.078275775 | L188: 80.75581461 | M188: 69.56956461 | N188: 8.078275775 | Q188: 249.5695646 | R188: 8.078275775
A189: 172 | B189: 261.7558146 | D189: 250.5041479 | F189: 0 | H189: 0 | J189: 7.186898934 | L189: 81.75581461 | M189: 70.50414794 | N189: 7.186898934 | Q189: 250.5041479 | R189: 7.186898934
A190: 173 | B190: 262.7558146 | D190: 251.4387313 | F190: 0 | H190: 0 | J190: 6.293332893 | L190: 82.75581461 | M190: 71.43873127 | N190: 6.293332893 | Q190: 251.4387313 | R190: 6.293332893
A191: 174 | B191: 263.7558146 | D191: 252.3733146 | F191: 0 | H191: 0 | J191: 5.397849843 | L191: 83.75581461 | M191: 72.37331461 | N191: 5.397849843 | Q191: 252.3733146 | R191: 5.397849843
A192: 175 | B192: 264.7558146 | D192: 253.3078979 | F192: 0 | H192: 0 | J192: 4.500722555 | L192: 84.75581461 | M192: 73.30789794 | N192: 4.500722555 | Q192: 253.3078979 | R192: 4.500722555
A193: 176 | B193: 265.7558146 | D193: 254.2424813 | F193: 0 | H193: 0 | J193: 3.602224304 | L193: 85.75581461 | M193: 74.24248127 | N193: 3.602224304 | Q193: 254.2424813 | R193: 3.602224304
A194: 177 | B194: 266.7558146 | D194: 255.1770646 | F194: 0 | H194: 0 | J194: 2.70262878 | L194: 86.75581461 | M194: 75.17706461 | N194: 2.70262878 | Q194: 255.1770646 | R194: 2.70262878
A195: 178 | B195: 267.7558146 | D195: 256.1116479 | F195: 0 | H195: 0 | J195: 1.80221001 | L195: 87.75581461 | M195: 76.11164794 | N195: 1.80221001 | Q195: 256.1116479 | R195: 1.80221001
A196: 179 | B196: 268.7558146 | D196: 257.0462313 | F196: 0 | H196: 0 | J196: 0.9012422684 | L196: 88.75581461 | M196: 77.04623127 | N196: 0.9012422684 | Q196: 257.0462313 | R196: 0.9012422684
A197: 180 | B197: 269.7558146 | D197: 257.9808146 | F197: 0 | H197: 0 | J197: 6.326666621e-15 | L197: 89.75581461 | M197: 77.98081461 | N197: 6.326666621e-15 | Q197: 257.9808146 | R197: 6.326666621e-15
A198: 181 | B198: 270.7558146 | D198: 258.9153979 | F198: 0 | H198: 0 | J198: -0.9012422684 | L198: 90.75581461 | M198: 78.91539794 | N198: -0.9012422684 | Q198: 258.9153979 | R198: -0.9012422684
A199: 182 | B199: 271.7558146 | D199: 259.8499813 | F199: 0 | H199: 0 | J199: -1.80221001 | L199: 91.75581461 | M199: 79.84998127 | N199: -1.80221001 | Q199: 259.8499813 | R199: -1.80221001
A200: 183 | B200: 272.7558146 | D200: 260.7845646 | F200: 0 | H200: 0 | J200: -2.70262878 | L200: 92.75581461 | M200: 80.78456461 | N200: -2.70262878 | Q200: 260.7845646 | R200: -2.70262878
A201: 184 | B201: 273.7558146 | D201: 261.7191479 | F201: 0 | H201: 0 | J201: -3.602224304 | L201: 93.75581461 | M201: 81.71914794 | N201: -3.602224304 | Q201: 261.7191479 | R201: -3.602224304
A202: 185 | B202: 274.7558146 | D202: 262.6537313 | F202: 0 | H202: 0 | J202: -4.500722555 | L202: 94.75581461 | M202: 82.65373127 | N202: -4.500722555 | Q202: 262.6537313 | R202: -4.500722555
A203: 186 | B203: 275.7558146 | D203: 263.5883146 | F203: 0 | H203: 0 | J203: -5.397849843 | L203: 95.75581461 | M203: 83.58831461 | N203: -5.397849843 | Q203: 263.5883146 | R203: -5.397849843
A204: 187 | B204: 276.7558146 | D204: 264.5228979 | F204: 0 | H204: 0 | J204: -6.293332893 | L204: 96.75581461 | M204: 84.52289794 | N204: -6.293332893 | Q204: 264.5228979 | R204: -6.293332893
A205: 188 | B205: 277.7558146 | D205: 265.4574813 | F205: 0 | H205: 0 | J205: -7.186898934 | L205: 97.75581461 | M205: 85.45748127 | N205: -7.186898934 | Q205: 265.4574813 | R205: -7.186898934
A206: 189 | B206: 278.7558146 | D206: 266.3920646 | F206: 0 | H206: 0 | J206: -8.078275775 | L206: 98.75581461 | M206: 86.39206461 | N206: -8.078275775 | Q206: 266.3920646 | R206: -8.078275775
A207: 190 | B207: 279.7558146 | D207: 267.3266479 | F207: 0 | H207: 0 | J207: -8.967191895 | L207: 99.75581461 | M207: 87.32664794 | N207: -8.967191895 | Q207: 267.3266479 | R207: -8.967191895
A208: 191 | B208: 280.7558146 | D208: 268.2612313 | F208: 0 | H208: 0 | J208: -9.853376521 | L208: 100.7558146 | M208: 88.26123127 | N208: -9.853376521 | Q208: 268.2612313 | R208: -9.853376521
A209: 192 | B209: 281.7558146 | D209: =B209-A209/360*$E$11 -> 269.1958146 | F209: =INT(B209/360) -> 0 | H209: =F209*360 -> 0 | J209: =SIN(RADIANS(A209))*$E$7 -> -10.73655971 | L209: =B209-H209-180 -> 101.7558146 | M209: =D209-INT(D209/360)*360-180 -> 89.19581461 | N209: -10.73655971 | Q209: =D209 -> 269.1958146 | R209: =N209 -> -10.73655971
A210: 193 | B210: 282.7558146 | D210: 270.1303979 | F210: 0 | H210: 0 | J210: -11.61647245 | L210: 102.7558146 | M210: 90.13039794 | N210: =J210 -> -11.61647245 | Q210: 270.1303979 | R210: -11.61647245
... 5793 more rows

Sheet TLE-Daten Auswertung
A1: Satellitenbahnelemente
A2: Aus "Two-Line-Elements" (TLE) extrahiert | E2: Ingo Mennerich, Schulbiologiezentrum Hannover, August 2019
B4: TWO-Line-ELEMENTS Übernahme aus der Eingabe
B5: ▼ | E5: EPOCHE*
A6: ► | B6: =Eingabe!Z14 -> 1 25544U 98067A 22045.55654105 .00009474 00000-0 17512-3 0 9997 | E6: =C59 -> 2022-02-14T13:21:25.147
B7: =Eingabe!Z15 -> 2 25544 51.6419 223.8874 0005841 130.5821 339.7825 15.49770723326160
E8: *) Epoche: Zeitpunkt (UTC) der Daten
B10: 07.02.2022 12:12:16 | R10: EINFÜGEN (HEAVENS-ABOVE.COM)
B12: Aus Two-Line-Elements extrahiert (rot) bzw. daraus abgeleitet (blau): | S12: ▼
R13: ► | S13: Epoche (UTC): | T13: Dienstag, 30. Juli 2019 16:25:26
S14: Exzentrizität: | T14: 0.0002515
B15: Epoche (Datum, Uhrzeit) | C15: =C59 -> 2022-02-14T13:21:25.147 | D15: UTC | S15: Inklination: | T15: 28,4696°
B16: Sternzeit Greenwich (GMST) zum Zeitpunkt der Epoche | C16: =C93 -> 23:01:48.105
B18: Exzentrizität: | C18: =C107 -> 0.0005841
B20: Mittlere Bewegung (Umrundungen pro Tag): | C20: =C114 -> 15.49770723
B21: Umlaufzeit T | C21: =C118 -> 5575.018209 | D21: s
C22: =C117 -> 92.91697014 | D22: min
B23: Geschwindigkeit | C23: =C130 -> 7658.792541 | D23: km/s
B24: im Durchschnitt | C24: =C132 -> 27571.65315 | D24: km/h
B25: im Apogäum | C25: =C151 -> 27563.60437 | D25: km/h
B26: im Perigäum | C26: =C153 -> 27579.70898 | D26: km/h
B28: Inklination: | C28: =C66 -> 51.6419 | D28: °
B29: Höhe des Perigäums: | C29: =C144 -> 413.4537971 | D29: km
B30: Höhe des Apogäums: | C30: =C142 -> 421.3923973 | D30: km
B32: W Rektaszension des aufsteigenden Knotens (RAAN) | C32: =C73 -> 223.8874 | D32: °
B33: DW Tägliche Knotenwanderung (Präzession), westlich | C33: =C76 -> 4.970891877 | D33: °
B35: l0 Länge beim aufsteigenden Äquatorübertritt (EQX) | C35: =C102 -> -121.5630359 | D35: ° | S35: Höhe des Perigäums: | T35: 537 km
S36: Höhe des Apogäums: | T36: 540 km
B37: w Argument des Perigäums: | C37: =C160 -> 130.5821 | D37: ° | S37: Rektaszension des aufsteigenden Knotens: | T37: 294,2618°
B38: Dw Tägliche Drehung des Perigäums | C38: =C162 -> 3.706949323 | D38: ° | S38: Argument des Perigäums: | T38: 214,1411°
S39: Mittlere Bewegung (Umrundungen pro Tag): | T39: 15.09248862
B40: n Mittlere Anomalie | C40: =C172 -> 339.7825 | D40: °
B42: Positionswinkel des Satelliten zum Knoten (w + n) | C42: =C178 -> 110.3646 | D42: °
B43: Zeitpunkt des Durchgangs im aufsteigenden Knoten (EQX) | C43: =C181 -> 2022-02-14T12:52:56.023 | D43: UTC | S43: Mittlere Anomalie: | T43: 281,4060°
E44: WIKIPEDIA
B45: Anzahl bisheriger Umrundungen: | C45: =C187 -> 32616 | E45: https://de.wikipedia.org/wiki/Satellitenbahnelement | S45: Anzahl an Umrundungen: | T45: 40715
B50: Datum, Uhrzeit
B51: Jahr | C51: =MID($B$6,19,2) -> 22
C52: =2000+C51 -> 2022
B53: Tag | C53: =MID($B$6,21,3) -> 045
B54: Tagesbruchteil | C54: =MID($B$6,25,8) -> 55654105
C55: =C54/100000000 -> 0.55654105
B56: Jahresbeginn | C56: =DATE(C52,1,1) -> 2022-01-01
C57: =C56+C53-1 -> 2022-02-14
C58: =(C55*24)/24 -> 13:21:25.147
B59: ► | C59: =C57+C58 -> 2022-02-14T13:21:25.147
B61: i | U61: =27^(1/3) -> 3
B62: Inklination
B63: Grad | C63: =MID($B$7,9,3) -> 51
B64: Bruchteil Grad | C64: =MID($B$7,13,5) -> 6419
C65: =C64/10000 -> 0.6419
B66: ► | C66: =C63+C65 -> 51.6419
B68: Ω
B69: Rektaszension des aufsteigenden Knotens
B70: Grad | C70: =MID($B$7,18,3) -> 223
B71: Bruchteil Grad | C71: =MID($B$7,22,4) -> 8874
C72: =C71/10000 -> 0.8874
B73: ► | C73: =C70+C72 -> 223.8874
B75: DW Knotenwanderung / Tag (westlich) in Grad
B76: Präzession | C76: =10*COS(RADIANS(C66))*(C125/(C125+C139))^(7/2) -> 4.970891877
B81: Sternzeit (GMST) zum Zeitpunkt des EQX | F81: GMST (0)
B82: Datum (00:00 UTC) | C82: =C57 -> 2022-02-14 | F82: =24110.54841+8640184.812866*C85+0.093104*C85^2-0.0000062*C85^3 -> 1935491.301
B83: Uhrzeit (UTC) | C83: =C58 -> 13:21:25.147 | F83: =F82/3600 -> 537.6364724
B84: Julianisches Datum JD | C84: =2451544.5+C82+C83-DATE(2000,1,1) -> 2459625.057 | F84: =(F83/24-INT(F83/24))*24 -> 9.636472433
B85: T | C85: =(C84-2451545)/36525 -> 0.2212198916 | F85: =F84/24 -> 09:38:11.301
B86: l0 Länge Greenwich | C86: 0
B87: Uhrzeit | C87: =C82+C83+1/24 -> 2022-02-14T14:21:25.147
B88: Zeit (h) seit 00:00 (UTC) | C88: =(C87-INT(C87))*24 -> 14.3569852
B89: In Sekunden | C89: =C88*3600-3600 -> 48085.14672
C90: =24110.54841+8640184.812866*C85+0.093104*C85^2-0.0000062*C85^3+240*C86+1.002738*C89 -> 1983708.105
C91: =C90/3600 -> 551.0300291
C92: =(C91/24-INT(C91/24))*24 -> 23.03002906
B93: GMST | C93: =C92/24 -> 23:01:48.105
B97: l0 Länge EQX
B98: Sternzeit | C98: =C93*24 -> 23.03002906
B99: Rekt. Sternzeit | C99: =C98/24*360 -> 345.4504359 | D99: Grad
B100: RAAN | C100: =C73 -> 223.8874 | D100: Grad
B101: Länge EQX | C101: =C100-C99 -> -121.5630359
C102: =IF(C101<-180,C101+360,IF(C101>180,C101-360,C101)) -> -121.5630359 | D102: Grad
B104: e
B105: Numerische Exzentrizität
C106: =MID($B$7,27,7) -> 0005841
B107: ► | C107: =C106/10000000 -> 0.0005841
B109: T
B110: Mittlere Geschwindigkeit (Umrundungen pro Tag)
B111: Ganzzahl | C111: =MID($B$7,53,2) -> 15
B112: Bruchteil | C112: =MID($B$7,56,8) -> 49770723
C113: =C112/100000000 -> 0.49770723
B114: ► | C114: =C111+C113 -> 15.49770723
B116: Umlaufzeit | C116: =24/C114 -> 1.548616169 | D116: h
C117: =C118/60 -> 92.91697014 | D117: min
C118: =3600*C116 -> 5575.018209 | D118: s
B121: G= | C121: 6.6743e-11
B122: M= | C122: 5.9723e+24 | D122: kg
B123: T= | C123: =C118 -> 5575.018209 | D123: s
B124: ØÄquator | C124: 12756.32 | D124: km
B125: Radius Erde | C125: =C124/2*1000 -> 6378160 | D125: m
B128: Große Halbachse a | C128: =((C121*C122*C123^2)/(4*PI()^2))^(1/3) -> 6795583.097 | D128: m
B130: Mittlere Geschwindigkeit | C130: =2*PI()*C128/C123 -> 7658.792541 | D130: m/s
C132: =C130*3600/1000 -> 27571.65315 | D132: km/h
B135: Apogäum | C135: =C128*(1+C107) -> 6799552.397 | D135: m
B136: Perigäum | C136: =C128*(1-C107) -> 6791613.797 | D136: m
B139: Ø Höhe Satellit | C139: =C128-C125 -> 417423.0972 | D139: m
C140: =C139/1000 -> 417.4230972 | D140: km
B141: Apogäum | C141: =C135-C125 -> 421392.3973 | D141: m
C142: =C141/1000 -> 421.3923973 | D142: km
B143: Perigäum | C143: =C136-C125 -> 413453.7971 | D143: m
C144: =C143/1000 -> 413.4537971 | D144: km
B145: v
B146: Geschwindigkeit
B148: im Durchschnitt | C148: =SQRT((C121*C122)/(C125+C139)) -> 7658.792541 | D148: m/s
C149: =C148*3600/1000 -> 27571.65315 | D149: km/h
B150: im Apogäum | C150: =SQRT((C121*C122)/(C125+C141)) -> 7656.55677 | D150: m/s
C151: =C150*3600/1000 -> 27563.60437 | D151: km/h
B152: im Perigäum | C152: =SQRT((C121*C122)/(C125+C143)) -> 7661.030271 | D152: m/s
C153: =C152*3600/1000 -> 27579.70898 | D153: km/h
B155: ω
B156: Argument des Perigäums
B157: Grad | C157: =MID($B$7,35,3) -> 130
B158: Bruchteil | C158: =MID($B$7,39,4) -> 5821
C159: =C158/10000 -> 0.5821
B160: ► | C160: =C157+C159 -> 130.5821
B162: Dω Drehung des Perigäums / Tag in Grad | C162: =5*(C125/(C125+C139))^(7/2)*(5*COS(RADIANS(C66))^2-1) -> 3.706949323
B163: postive Werte rechtläufig, negative Werte rückläufig
B168: Mittlere Anomalie
B169: Grad | C169: =MID($B$7,44,3) -> 339
B170: Bruchteil | C170: =MID($B$7,48,4) -> 7825
C171: =C170/10000 -> 0.7825
B172: ► | C172: =C169+C171 -> 339.7825
B174: Positionswinkel des Satelliten zum Aufsteigenden Knoten
B176: Argument des Perigäums + Mittlere Anomalie (ROH) | C176: =C37+C40 -> 470.3646
B178: Bahnwinkel zur Knotenlinie auf 360° reduziert | C178: =IF(C176>360,C176-360,C176) -> 110.3646
B179: Zeit seit EQX: (w+v)/360*T | C179: =C178/360*C21 -> 1709.124041 | D179: Sekunden
C180: =C179/3600/24 -> 0.01978152825 | D180: Tage
B181: Zeitpunkt des EQX (UTC) | C181: =C15-C180 -> 2022-02-14T12:52:56.023
B184: Anzahl Umrundungen
C186: =MID($B$7,64,5) -> 32616
B187: ► | C187: =C186 -> 32616
